Workbook

Sheet RC64
A2: SymbolRate | B2: 8 | C2: ←RCフィルタ設計パラメータ（シンボル間隔：T）
A3: RollOff | B3: 0.22 | C3: ←RCフィルタ設計パラメータ（ロールオフ係数：β）
B8: f1 | C8: f2 | D8: h(t) | E8: win | F8: win x h(t)
H9: フィルタ係数
A10: 0 | B10: 1 | C10: 1 | D10: =B10*C10 -> 1 | E10: =(COS(PI()*A10/32)+1)/2 -> 1 | F10: =E10*D10 -> 1 | G10: 0 | H10: =F41 -> -3.550215049e-05
A11: 1 | B11: =SIN(PI()*A11/B$2)/(PI()*A11/B$2) -> 0.9744953584 | C11: =COS(PI()*B$3*A11/B$2)/(1-4*B$3^2*A11^2/B$2^2) -> 0.9992932385 | D11: 0.9738066226 | E11: =(COS(PI()*A11/32)+1)/2 -> 0.9975923633 | F11: =E11*D11 -> 0.9714620501 | G11: 1 | H11: =F40 -> -0.0002854397637
A12: 2 | B12: =SIN(PI()*A12/B$2)/(PI()*A12/B$2) -> 0.9003163162 | C12: =COS(PI()*B$3*A12/B$2)/(1-4*B$3^2*A12^2/B$2^2) -> 0.9971751454 | D12: 0.8977730535 | E12: 0.9903926402 | F12: 0.8891478247 | G12: 2 | H12: =F39 -> -0.0009099188988
A13: 3 | B13: 0.7842133036 | C13: 0.9936522855 | D13: 0.7792353414 | E13: 0.9784701679 | F13: 0.7624585353 | G13: 3 | H13: =F38 -> -0.001893004438
A14: 4 | B14: 0.6366197724 | C14: 0.9887355706 | D14: 0.6294486139 | E14: 0.9619397663 | F14: 0.6054916525 | G14: 4 | H14: =F37 -> -0.002946269423
A15: 5 | B15: 0.4705279821 | C15: 0.9824402151 | D15: 0.462265612 | E15: 0.9409606322 | F15: 0.4349737425 | G15: 5 | H15: =F36 -> -0.003491997009
A16: 6 | B16: 0.3001054387 | C16: 0.9747856744 | D16: 0.2925384825 | E16: 0.9157348062 | F16: 0.2678876705 | G16: 6 | H16: =F35 -> -0.002759686283
A17: 7 | B17: 0.1392136226 | C17: 0.9657955658 | D17: 0.1344518994 | E17: 0.8865052267 | F17: 0.1191923116 | G17: 7 | H17: =F34 -> 3.705998485e-18
A18: 8 | B18: 3.899768652e-17 | C18: 0.9554975729 | D18: 3.726219482e-17 | E18: 0.8535533906 | F18: 3.180527273e-17 | G18: 8 | H18: =F33 -> 0.005217621803
A19: 9 | B19: -0.108277262 | C19: 0.9439233338 | D19: -0.1022054342 | E19: 0.8171966421 | F19: -0.0835219376 | G19: 9 | H19: =F32 -> 0.01269399471
A20: 10 | B20: -0.1800632632 | C20: 0.931108313 | D20: -0.1676584013 | E20: 0.7777851165 | F20: -0.1304022092 | G20: 10 | H20: =F31 -> 0.02137023618
A21: 11 | B21: -0.2138763555 | C21: 0.9170916587 | D21: -0.1961442216 | E21: 0.7356983684 | F21: -0.1443029838 | G21: 11 | H21: =F30 -> 0.02927528976
A22: 12 | B22: -0.2122065908 | C22: 0.9019160449 | D22: -0.1913925291 | E22: 0.6913417162 | F22: -0.1323176395 | G22: 12 | H22: =F29 -> 0.03372258764
A23: 13 | B23: -0.1809723008 | C23: 0.8856275004 | D23: -0.1602740464 | E23: 0.6451423386 | F23: -0.1033995731 | G23: 13 | H23: =F28 -> 0.03177742525
A24: 14 | B24: -0.1286166166 | C24: 0.8682752242 | D24: -0.1116746216 | E24: 0.597545161 | F24: -0.06673062975 | G24: 14 | H24: =F27 -> 0.02094996095
A25: 15 | B25: -0.06496635723 | C25: 0.849911389 | D25: -0.05521564691 | E25: 0.5490085702 | F25: -0.03031386336 | G25: 15 | H25: =F26 -> -1.619556243e-17
A26: 16 | B26: -3.899768652e-17 | C26: 0.8305909334 | D26: -3.239112485e-17 | E26: 0.5 | F26: -1.619556243e-17 | G26: 16 | H26: =F25 -> -0.03031386336
A27: 17 | B27: 0.05732325638 | C27: 0.810371344 | D27: 0.04645312431 | E27: 0.4509914298 | F27: 0.02094996095 | G27: 17 | H27: =F24 -> -0.06673062975
A28: 18 | B28: 0.1000351462 | C28: 0.7893124277 | D28: 0.07895898414 | E28: 0.402454839 | F28: 0.03177742525 | G28: 18 | H28: =F23 -> -0.1033995731
A29: 19 | B29: 0.1238231532 | C29: 0.7674760764 | D29: 0.09503130778 | E29: 0.3548576614 | F29: 0.03372258764 | G29: 19 | H29: =F22 -> -0.1323176395
A30: 20 | B30: 0.1273239545 | C30: =COS(PI()*B$3*A30/B$2)/(1-4*B$3^2*A30^2/B$2^2) -> 0.744926024 | D30: 0.09484692717 | E30: 0.3086582838 | F30: 0.02927528976 | G30: 20 | H30: =F21 -> -0.1443029838
A31: 21 | B31: 0.1120304719 | C31: 0.7217275977 | D31: 0.08085548339 | E31: 0.2643016316 | F31: 0.02137023618 | G31: 21 | H31: =F20 -> -0.1304022092
A32: 22 | B32: 0.08184693783 | C32: 0.6979474643 | D32: 0.05712486272 | E32: 0.2222148835 | F32: 0.01269399471 | G32: 22 | H32: =F19 -> -0.0835219376
A33: 23 | B33: 0.04236936341 | C33: 0.6736533725 | D33: 0.02854226455 | E33: 0.1828033579 | F33: 0.005217621803 | G33: 23 | H33: =F18 -> 3.180527273e-17
A34: 24 | B34: 3.899768652e-17 | C34: 0.6489138929 | D34: 2.530614058e-17 | E34: 0.1464466094 | F34: 3.705998485e-18 | G34: 24 | H34: =F17 -> 0.1191923116
A35: 25 | B35: -0.03897981434 | C35: 0.6237981564 | D35: -0.02431553632 | E35: 0.1134947733 | F35: -0.002759686283 | G35: 25 | H35: =F16 -> 0.2678876705
A36: 26 | B36: -0.06925510124 | C36: 0.5983755922 | D36: -0.04144056222 | E36: 0.08426519385 | F36: -0.003491997009 | G36: 26 | H36: =F15 -> 0.4349737425
A37: 27 | B37: -0.08713481151 | C37: 0.5727156674 | D37: -0.04990347173 | E37: 0.05903936783 | F37: -0.002946269423 | G37: 27 | H37: =F14 -> 0.6054916525
A38: 28 | B38: -0.09094568177 | C38: 0.5468876273 | D38: -0.04973706812 | E38: 0.03806023374 | F38: -0.001893004438 | G38: 28 | H38: =F13 -> 0.7624585353
A39: 29 | B39: -0.08112551416 | C39: 0.5209602405 | D39: -0.04226316737 | E39: 0.02152983213 | F39: -0.0009099188988 | G39: 29 | H39: =F12 -> 0.8891478247
A40: 30 | B40: -0.06002108774 | C40: 0.4950015468 | D40: -0.02971053127 | E40: 0.009607359798 | F40: -0.0002854397637 | G40: 30 | H40: =F11 -> 0.9714620501 | L40: RCフィルタの係数
A41: 31 | B41: -0.03143533414 | C41: 0.4690786119 | D41: -0.0147456429 | E41: 0.002407636664 | F41: -3.550215049e-05 | G41: 31 | H41: =F10 -> 1
G42: 32 | H42: =F11 -> 0.9714620501
G43: 33 | H43: =F12 -> 0.8891478247
G44: 34 | H44: 0.7624585353
G45: 35 | H45: 0.6054916525
G46: 36 | H46: 0.4349737425
G47: 37 | H47: 0.2678876705
G48: 38 | H48: 0.1191923116
G49: 39 | H49: 3.180527273e-17 | N49: f1 | O49: f2
G50: 40 | H50: -0.0835219376
G51: 41 | H51: -0.1304022092
G52: 42 | H52: -0.1443029838
G53: 43 | H53: -0.1323176395
G54: 44 | H54: -0.1033995731
G55: 45 | H55: -0.06673062975
G56: 46 | H56: -0.03031386336
G57: 47 | H57: -1.619556243e-17
G58: 48 | H58: 0.02094996095
G59: 49 | H59: 0.03177742525
G60: 50 | H60: 0.03372258764
G61: 51 | H61: 0.02927528976
G62: 52 | H62: 0.02137023618
G63: 53 | H63: 0.01269399471
G64: 54 | H64: 0.005217621803
G65: 55 | H65: 3.705998485e-18
G66: 56 | H66: -0.002759686283
G67: 57 | H67: -0.003491997009
G68: 58 | H68: -0.002946269423
G69: 59 | H69: -0.001893004438
G70: 60 | H70: -0.0009099188988
G71: 61 | H71: -0.0002854397637
G72: 62 | H72: -3.550215049e-05
G73: 63 | H73: 0

Sheet FIR_RC64
B1: Input | C1: Result
A2: 0 | B2: 1 | C2: -8.004691503
A3: 1 | B3: 0 | C3: -8.00522688
A4: 2 | B4: 0 | C4: -8.006761278 | G4: ←このボタンを押すと「RFC64」を係数としB列を入力としたFIRフィルタを実行します。
A5: 3 | B5: 0 | C5: -8.009637368
A6: 4 | B6: 0 | C6: -8.013636903
A7: 5 | B7: 0 | C7: -8.017674627
A8: 6 | B8: 0 | C8: -8.019702003
A9: 7 | B9: 0 | C9: -8.016942316
A10: 8 | B10: 1 | C10: -8.006542575
A11: 9 | B11: 0 | C11: -7.986622145
A12: 10 | B12: 0 | C12: -7.957200146
A13: 11 | B13: 0 | C13: -7.921002889
A14: 12 | B14: 0 | C14: -7.883886268
A15: 13 | B15: 0 | C15: -7.854599733
A16: 14 | B16: 0 | C16: -7.843744925
A17: 15 | B17: 0 | C17: -7.8619352
A18: 16 | B18: -1 | C18: -7.917309803
A19: 17 | B19: 0 | C19: -8.012730889
A20: 18 | B20: 0 | C20: -8.143498684
A21: 19 | B21: 0 | C21: -8.295846251
A22: 20 | B22: 0 | C22: -8.446634017
A23: 21 | B23: 0 | C23: -8.564534886
A24: 22 | B24: 0 | C24: -8.612736327
A25: 23 | B25: 0 | C25: -8.552924037
A26: 24 | B26: 1 | C26: -8.350106401
A27: 25 | B27: 0 | C27: -7.977666448
A28: 26 | B28: 0 | C28: -7.421576298
A29: 27 | B29: 0 | C29: -6.683372941
A30: 28 | B30: 0 | C30: -5.78143343
A31: 29 | B31: 0 | C31: -4.750296106
A32: 30 | B32: 0 | C32: -3.638079784
A33: 31 | B33: 0 | C33: -2.502310249
A34: 32 | B34: -1 | C34: -1.40462685
A35: 33 | B35: 0 | C35: -0.4049548149
A36: 34 | B36: 0 | C36: 0.4438701669
A37: 35 | B37: 0 | C37: 1.100719052
A38: 36 | B38: 0 | C38: 1.539627675
A39: 37 | B39: 0 | C39: 1.751818353
A40: 38 | B40: 0 | C40: 1.746189485 | G40: ↑全てのシンボル（シンボルレート8）が期待値（1/-1）を打ち抜いている
A41: 39 | B41: 0 | C41: 1.548303538
A42: 40 | B42: 1 | C42: 1.197962414
A43: 41 | B43: 0 | C43: 0.7455272721
A44: 42 | B44: 0 | C44: 0.2475784882
A45: 43 | B45: 0 | C45: -0.2380448053
A46: 44 | B46: 0 | C46: -0.6574970121
A47: 45 | B47: 0 | C47: -0.9660338504
A48: 46 | B48: 0 | C48: -1.132500485
A49: 47 | B49: 0 | C49: -1.142685298
A50: 48 | B50: -1 | C50: -1.001010065
A51: 49 | B51: 0 | C51: -0.730132786
A52: 50 | B52: 0 | C52: -0.3686207853
A53: 51 | B53: 0 | C53: 0.03348354923
A54: 52 | B54: 0 | C54: 0.4208374982
A55: 53 | B55: 0 | C55: 0.7399993468
A56: 54 | B56: 0 | C56: 0.9467268998
A57: 55 | B57: 0 | C57: 1.012321818
A58: 56 | B58: -1 | C58: 0.9280480995
A59: 57 | B59: 0 | C59: 0.7068787416
A60: 58 | B60: 0 | C60: 0.3818280697
A61: 59 | B61: 0 | C61: 0.001230860813
A62: 60 | B62: 0 | C62: -0.3783832625
A63: 61 | B63: 0 | C63: -0.7007731048
A64: 62 | B64: 0 | C64: -0.9184859678
A65: 63 | B65: 0 | C65: -1
A66: 64 | B66: 1 | C66: -0.934440584
A67: 65 | B67: 0 | C67: -0.7331805904
A68: 66 | B68: 0 | C68: -0.4273372157
A69: 67 | B69: 0 | C69: -0.06233658841
A70: 68 | B70: 0 | C70: 0.3094391914
A71: 69 | B71: 0 | C71: 0.6366828769
A72: 70 | B72: 0 | C72: 0.8765150416
A73: 71 | B73: 0 | C73: 1
A74: 72 | B74: 1 | C74: 0.9949973064
A75: 73 | B75: 0 | C75: 0.8660709703
A76: 74 | B76: 0 | C76: 0.6323165241
A77: 75 | B77: 0 | C77: 0.3231858586
A78: 76 | B78: 0 | C78: -0.02672576257
A79: 77 | B79: 0 | C79: -0.3828624526
A80: 78 | B80: 0 | C80: -0.7149905389
A81: 79 | B81: 0 | C81: -1
A82: 80 | B82: 1 | C82: -1.22301769
A83: 81 | B83: 0 | C83: -1.377029201
A84: 82 | B84: 0 | C84: -1.461343375
A85: 83 | B85: 0 | C85: -1.479404593
A86: 84 | B86: 0 | C86: -1.436638672
A87: 85 | B87: 0 | C87: -1.33886234
A88: 86 | B88: 0 | C88: -1.191553012
A89: 87 | B89: 0 | C89: -1
A90: 88 | B90: -1 | C90: -0.7700988931
A91: 89 | B91: 0 | C91: -0.5093397181
A92: 90 | B92: 0 | C92: -0.22763237
A93: 91 | B93: 0 | C93: 0.06233658841
A94: 92 | B94: 0 | C94: 0.3455303943
A95: 93 | B95: 0 | C95: 0.6058374315
A96: 94 | B96: 0 | C96: 0.8280244355
A97: 95 | B97: 0 | C97: 1
A98: 96 | B98: 1 | C98: 1.114899665
A99: 97 | B99: 0 | C99: 1.172458218
A100: 98 | B100: 0 | C100: 1.179386676
A101: 99 | B101: 0 | C101: 1.148646717
A102: 100 | B102: 0 | C102: 1.097579855
A103: 101 | B103: 0 | C103: 1.045115059
A104: 102 | B104: 0 | C104: 1.008483516
A105: 103 | B105: 0 | C105: 1
A106: 104 | B106: 1 | C106: 1.024438132
A107: 105 | B107: 0 | C107: 1.077487043
A108: 106 | B108: 0 | C108: 1.146212866
A109: 107 | B109: 0 | C109: 1.210983305
A110: 108 | B110: 0 | C110: 1.248651689
A111: 109 | B111: 0 | C111: 1.236583948
A112: 110 | B112: 0 | C112: 1.156870591
A113: 111 | B113: 0 | C113: 1
A114: 112 | B114: 1 | C114: 0.7673257045
A115: 113 | B115: 0 | C115: 0.4718052925
A116: 114 | B116: 0 | C116: 0.1369114102
A117: 115 | B117: 0 | C117: -0.2060846995
A118: 116 | B118: 0 | C118: -0.5221308765
A119: 117 | B119: 0 | C119: -0.7771281304
A120: 118 | B120: 0 | C120: -0.9426621409
A121: 119 | B121: 0 | C121: -1
A122: 120 | B122: 1 | C122: -0.9427331452
A123: 121 | B123: 0 | C123: -0.7776990099
A124: 122 | B124: 0 | C124: -0.5239507143
A125: 123 | B125: 0 | C125: -0.2098707084
A126: 124 | B126: 0 | C126: 0.1310188714
A127: 125 | B127: 0 | C127: 0.4648212985
A128: 126 | B128: 0 | C128: 0.7618063319
A129: 127 | B129: 0 | C129: 1
A130: 128 | B130: -1 | C130: 1.167305835
A131: 129 | B131: 0 | C131: 1.261971937
A132: 130 | B132: 0 | C132: 1.291392162
A133: 131 | B133: 0 | C133: 1.269533885
A134: 132 | B134: 0 | C134: 1.213658041
A135: 133 | B135: 0 | C135: 1.141041893
A136: 134 | B136: 0 | C136: 1.066338054
A137: 135 | B137: 0 | C137: 1
A138: 136 | B138: 1 | C138: 0.9478557895
A139: 137 | B139: 0 | C139: 0.9116537996
A140: 138 | B140: 0 | C140: 0.8907807087
A141: 139 | B141: 0 | C141: 0.8840114376
A142: 140 | B142: 0 | C142: 0.8907807087
A143: 141 | B143: 0 | C143: 0.9116537996
A144: 142 | B144: 0 | C144: 0.9478557895
A145: 143 | B145: 0 | C145: 1
A146: 144 | B146: -1 | C146: 1.066409059
A147: 145 | B147: 0 | C147: 1.141612773
A148: 146 | B148: 0 | C148: 1.215477879
A149: 147 | B149: 0 | C149: 1.273319893
A150: 148 | B150: 0 | C150: 1.297284701
A151: 149 | B151: 0 | C151: 1.268955931
A152: 150 | B152: 0 | C152: 1.172825207
A153: 151 | B153: 0 | C153: 1
A154: 152 | B154: -1 | C154: 0.7514420926
A155: 153 | B155: 0 | C155: 0.4400041886
A156: 154 | B156: 0 | C156: 0.09009823679
A157: 155 | B157: 0 | C157: -0.264635279
A158: 156 | B158: 0 | C158: -0.5855033507
A159: 157 | B159: 0 | C159: -0.8342698664
A160: 158 | B160: 0 | C160: -0.9791136945
A161: 159 | B161: 0 | C161: -1
A162: 160 | B162: 1 | C162: -0.8925406621
A163: 161 | B163: 0 | C163: -0.6696257399
A164: 162 | B164: 0 | C164: -0.3598920404
A165: 163 | B165: 0 | C165: -0.003786008877
A166: 164 | B166: 0 | C166: 0.3521796638
A167: 165 | B167: 0 | C167: 0.6620708663
A168: 166 | B168: 0 | C168: 0.8869502852
A169: 167 | B169: 0 | C169: 1
A170: 168 | B170: 1 | C170: 0.9894779338
A171: 169 | B171: 0 | C171: 0.8590869763
A172: 170 | B172: 0 | C172: 0.6264239853
A173: 171 | B173: 0 | C173: 0.3193998497
A174: 172 | B174: 0 | C174: -0.02854560037
A175: 173 | B175: 0 | C175: -0.3834333321
A176: 174 | B176: 0 | C176: -0.7150615432
A177: 175 | B177: 0 | C177: -1
A178: 176 | B178: 1 | C178: -1.22301769
A179: 177 | B179: 0 | C179: -1.377029201
A180: 178 | B180: 0 | C180: -1.461343375
A181: 179 | B181: 0 | C181: -1.479404593
A182: 180 | B182: 0 | C182: -1.436638672
A183: 181 | B183: 0 | C183: -1.33886234
A184: 182 | B184: 0 | C184: -1.191553012
A185: 183 | B185: 0 | C185: -1
A186: 184 | B186: -1 | C186: -0.7700988931
A187: 185 | B187: 0 | C187: -0.5093397181
A188: 186 | B188: 0 | C188: -0.22763237
A189: 187 | B189: 0 | C189: 0.06233658841
A190: 188 | B190: 0 | C190: 0.3455303943
A191: 189 | B191: 0 | C191: 0.6058374315
A192: 190 | B192: 0 | C192: 0.8280244355
A193: 191 | B193: 0 | C193: 1
A194: 192 | B194: 1 | C194: 1.114899665
A195: 193 | B195: 0 | C195: 1.172458218
A196: 194 | B196: 0 | C196: 1.179386676
A197: 195 | B197: 0 | C197: 1.148646717
A198: 196 | B198: 0 | C198: 1.097579855
A199: 197 | B199: 0 | C199: 1.045115059
A200: 198 | B200: 0 | C200: 1.008483516
... 313 more rows

Sheet RRC64
A2: SymbolRate | B2: 8 | C2: ←RRCフィルタ設計パラメータ（シンボル間隔：T） | H2: =SUM(H10:H265) -> 6.240566183 | I2: ←Gain
A3: RollOff | B3: 0.99 | C3: ←RRCフィルタ設計パラメータ（ロールオフ係数：β）
B8: f1 | C8: f2 | D8: h(t) | E8: win | F8: win x h(t)
H9: フィルタ係数
A10: 1e-06 | B10: =4*B$3*COS(PI()*A10*(1+B$3)/B$2)/(PI()*SQRT(B$2)*(1-(4*B$3*A10/B$2)^2)) -> 0.4456565765 | C10: =4*B$3*(SIN(PI()*A10*(1-B$3)/B$2)/(4*B$3*A10/B$2))/(PI()*SQRT(B$2)*(1-(4*B$3*A10/B$2)^2)) -> 0.003535533906 | D10: =(B10+C10)/(B$10+C$10) -> 1 | E10: =(COS(PI()*A10/32)+1)/2 -> 1 | F10: =D10*E10 -> 1 | G10: 0 | H10: =F41 -> -6.356263196e-06
A11: 1 | B11: =4*B$3*COS(PI()*A11*(1+B$3)/B$2)/(PI()*SQRT(B$2)*(1-(4*B$3*A11/B$2)^2)) -> 0.419036199 | C11: =4*B$3*(SIN(PI()*A11*(1-B$3)/B$2)/(4*B$3*A11/B$2))/(PI()*SQRT(B$2)*(1-(4*B$3*A11/B$2)^2)) -> 0.004682969395 | D11: =(B11+C11)/(B$10+C$10) -> 0.9432916531 | E11: =(COS(PI()*A11/32)+1)/2 -> 0.9975923633 | F11: =D11*E11 -> 0.9410205495 | G11: 1 | H11: =F40 -> 4.759842753e-06
A12: 2 | B12: 0.1758865619 | C12: 0.1776631939 | D12: 0.7870791752 | E12: 0.9903926402 | F12: 0.7795174224 | G12: 2 | H12: =F39 -> 8.072283284e-05
A13: 3 | B13: 0.2583687735 | C13: -0.002933437427 | D13: 0.5686549922 | E13: 0.9784701679 | F13: 0.5564119457 | G13: 3 | H13: =F38 -> 0.0001948390482
A14: 4 | B14: 0.1525823849 | C14: -0.001210583658 | D14: 0.3369867764 | E14: 0.9619397663 | F14: 0.3241609809 | G14: 4 | H14: =F37 -> 0.0002045835991
A15: 5 | B15: 0.06267589729 | C15: -0.0006897318344 | D15: 0.1379947778 | E15: 0.9409606322 | F15: 0.1298476533 | G15: 5 | H15: =F36 -> -5.577833672e-05
A16: 6 | B16: 0.001342500753 | C16: -0.0004520204555 | D16: 0.001982404136 | E16: 0.9157348062 | F16: 0.001815356467 | G16: 6 | H16: =F35 -> -0.0005779783165
A17: 7 | B17: -0.02783391438 | C17: -0.0003211899318 | D17: -0.06267942748 | E17: 0.8865052267 | F17: -0.05556564007 | G17: 7 | H17: =F34 -> -0.001040430359
A18: 8 | B18: -0.03033979075 | C18: -0.0002407743272 | D18: -0.06807903427 | E18: 0.8535533906 | F18: -0.05810909053 | G18: 8 | H18: =F33 -> -0.0009142627517
A19: 9 | B19: -0.01730061765 | C19: -0.0001875520354 | D19: -0.03893249521 | E19: 0.8171966421 | F19: -0.03181550435 | G19: 9 | H19: =F32 -> 0.0001469175871
A20: 10 | B20: -0.0007444482538 | C20: -0.0001503935866 | D20: -0.001992113886 | E20: 0.7777851165 | F20: -0.001549436531 | G20: 10 | H20: =F31 -> 0.001849349191
A21: 11 | B21: 0.01051467098 | C21: -0.0001233744551 | D21: 0.02313330151 | E21: 0.7356983684 | F21: 0.01701913218 | G21: 11 | H21: =F30 -> 0.003121925154
A22: 12 | B22: 0.01298468778 | C22: -0.0001030879346 | D22: 0.02867726202 | E22: 0.6913417162 | F22: 0.01982578754 | G22: 12 | H22: =F29 -> 0.002594583496
A23: 13 | B23: 0.0081861691 | C23: -8.745523807e-05 | D23: 0.01802951048 | E23: 0.6451423386 | F23: 0.01163160055 | G23: 13 | H23: =F28 -> -0.0004001306677
A24: 14 | B24: 0.0005207647237 | C24: -7.514642478e-05 | D24: 0.0009920439132 | E24: 0.597545161 | F24: 0.0005927910398 | G24: 14 | H24: =F27 -> -0.004875040974
A25: 15 | B25: -0.005468779779 | C25: -6.527708985e-05 | D25: -0.01232002241 | E25: 0.5490085702 | F25: -0.00676379789 | G25: 15 | H25: =F26 -> -0.008084361651
A26: 16 | B26: -0.007205623121 | C26: -5.723982084e-05 | D26: -0.0161687233 | E26: 0.5 | F26: -0.008084361651 | G26: 16 | H26: =F25 -> -0.00676379789
A27: 17 | B27: -0.004804985166 | C27: -5.060586924e-05 | D27: -0.0108096089 | E27: 0.4509914298 | F27: -0.004875040974 | G27: 17 | H27: =F24 -> 0.0005927910398
A28: 18 | B28: -0.0004015326403 | C28: -4.506539172e-05 | D28: -0.0009942250134 | E28: 0.402454839 | F28: -0.0004001306677 | G28: 18 | H28: =F23 -> 0.01163160055
A29: 19 | B29: 0.00332471075 | C29: -4.038984357e-05 | D29: 0.007311617525 | E29: 0.3548576614 | F29: 0.002594583496 | G29: 19 | H29: =F22 -> 0.01982578754
A30: 20 | B30: 0.004579762561 | C30: -3.640758893e-05 | D30: 0.01011450305 | E30: 0.3086582838 | F30: 0.003121925154 | G30: 20 | H30: =F21 -> 0.01701913218
A31: 21 | B31: 0.003176036991 | C31: -3.298766112e-05 | D31: 0.006997116061 | E31: 0.2643016316 | F31: 0.001849349191 | G31: 21 | H31: =F20 -> -0.001549436531
A32: 22 | B32: 0.0003270124981 | C32: -3.002869588e-05 | D32: 0.0006611509761 | E32: 0.2222148835 | F32: 0.0001469175871 | G32: 22 | H32: =F19 -> -0.03181550435
A33: 23 | B33: -0.002219113708 | C33: -2.745123259e-05 | D33: -0.005001345501 | E33: 0.1828033579 | F33: -0.0009142627517 | G33: 23 | H33: =F18 -> -0.05810909053
A34: 24 | B34: -0.003166094384 | C34: -2.519225887e-05 | D34: -0.007104502882 | E34: 0.1464466094 | F34: -0.001040430359 | G34: 24 | H34: =F17 -> -0.05556564007
A35: 25 | B35: -0.002264334015 | C35: -2.320127992e-05 | D35: -0.005092554481 | E35: 0.1134947733 | F35: -0.0005779783165 | G35: 25 | H35: =F16 -> 0.001815356467
A36: 26 | B36: -0.0002758998987 | C36: -2.143744357e-05 | D36: -0.0006619380336 | E36: 0.08426519385 | F36: -5.577833672e-05 | G36: 26 | H36: =F15 -> 0.1298476533
A37: 27 | B37: 0.001576410813 | C37: -1.986740844e-05 | D37: 0.003465206465 | E37: 0.05903936783 | F37: 0.0002045835991 | G37: 27 | H37: =F14 -> 0.3241609809
A38: 28 | B38: 0.002317980972 | C38: -1.846374327e-05 | D38: 0.00511922889 | E38: 0.03806023374 | F38: 0.0001948390482 | G38: 28 | H38: =F13 -> 0.5564119457
A39: 29 | B39: 0.001701381247 | C39: -1.720371105e-05 | D39: 0.00374934799 | E39: 0.02152983213 | F39: 8.072283284e-05 | G39: 29 | H39: =F12 -> 0.7795174224
A40: 30 | B40: 0.0002386147851 | C40: -1.60683357e-05 | D40: 0.0004954371287 | E40: 0.009607359798 | F40: 4.759842753e-06 | G40: 30 | H40: =F11 -> 0.9410205495 | L40: RRCフィルタの係数
A41: 31 | B41: -0.001170844598 | C41: -1.504167856e-05 | D41: -0.002640042533 | E41: 0.002407636664 | F41: -6.356263196e-06 | G41: 31 | H41: =F10 -> 1
G42: 32 | H42: =F11 -> 0.9410205495
G43: 33 | H43: =F12 -> 0.7795174224
G44: 34 | H44: 0.5564119457
G45: 35 | H45: 0.3241609809
G46: 36 | H46: 0.1298476533
G47: 37 | H47: 0.001815356467
G48: 38 | H48: -0.05556564007
G49: 39 | H49: -0.05810909053
G50: 40 | H50: -0.03181550435
G51: 41 | H51: -0.001549436531
G52: 42 | H52: 0.01701913218 | N52: f1 | P52: f2
G53: 43 | H53: 0.01982578754
G54: 44 | H54: 0.01163160055
G55: 45 | H55: 0.0005927910398
G56: 46 | H56: -0.00676379789
G57: 47 | H57: -0.008084361651
G58: 48 | H58: -0.004875040974
G59: 49 | H59: -0.0004001306677
G60: 50 | H60: 0.002594583496
G61: 51 | H61: 0.003121925154
G62: 52 | H62: 0.001849349191
G63: 53 | H63: 0.0001469175871
G64: 54 | H64: -0.0009142627517
G65: 55 | H65: -0.001040430359
G66: 56 | H66: -0.0005779783165
G67: 57 | H67: -5.577833672e-05
G68: 58 | H68: 0.0002045835991
G69: 59 | H69: 0.0001948390482
G70: 60 | H70: 8.072283284e-05
G71: 61 | H71: 4.759842753e-06
G72: 62 | H72: -6.356263196e-06
G73: 63 | H73: 0

Sheet FIR_RRC64
B1: Input | C1: Result | D1: Input2 | E1: Result2
A2: 0 | B2: 1 | C2: -8.000016297 | D2: =C2 -> -8.000016297 | E2: -0.9999928702
A3: 1 | B3: 0 | C3: -7.999995945 | D3: =C3 -> -7.999995945 | E3: -0.9999982093 | J3: ←このボタンを押すと「RRFC64」を係数としB列を入力としたFIRフィルタを実行します。
A4: 2 | B4: 0 | C4: -7.999795084 | D4: -7.999795084 | E4: -1.000088756
A5: 3 | B5: 0 | C5: -7.999399023 | D5: -7.999399023 | E5: -1.000307306
A6: 4 | B6: 0 | C6: -7.999124268 | D6: -7.999124268 | E6: -1.000536783 | J6: ←このボタンを押すと「RRFC64」を係数としB列を入力としたFIRフィルタを実行し、その結果（D列）を入力として再度FIRフィルタを実行します。
A7: 5 | B7: 0 | C7: -7.99952954 | D7: -7.99952954 | E7: -1.000474204
A8: 6 | B8: 0 | C8: -8.000939897 | D8: -8.000939897 | E8: -0.9998258651
A9: 7 | B9: 0 | C9: -8.002866494 | D9: -8.002866494 | E9: -0.9986588053
A10: 8 | B10: 1 | C10: -8.003884929 | D10: -8.003884929 | E10: -0.9976333286
A11: 9 | B11: 0 | C11: -8.002321976 | D11: -8.002321976 | E11: -0.9977982856
A12: 10 | B12: 0 | C12: -7.997671444 | D12: -7.997671444 | E12: -0.9998729326
A13: 11 | B13: 0 | C13: -7.99189169 | D13: -7.99189169 | E13: -1.003374903
A14: 12 | B14: 0 | C14: -7.989229129 | D14: -7.989229129 | E14: -1.006284904
A15: 13 | B15: 0 | C15: -7.993914866 | D15: -7.993914866 | E15: -1.005835087
A16: 14 | B16: 0 | C16: -8.006570322 | D16: -8.006570322 | E16: -1.000365437
A17: 15 | B17: 0 | C17: -8.021640922 | D17: -8.021640922 | E17: -0.9912966399
A18: 16 | B18: -1 | C18: -8.028448907 | D18: -8.028448907 | E18: -0.9837112983
A19: 17 | B19: 0 | C19: -8.016912205 | D19: -8.016912205 | E19: -0.9843806317
A20: 18 | B20: 0 | C20: -7.985765186 | D20: -7.985765186 | E20: -0.9974333269
A21: 19 | B21: 0 | C21: -7.948360331 | D21: -7.948360331 | E21: -1.019674202
A22: 20 | B22: 0 | C22: -7.93082937 | D22: -7.93082937 | E22: -1.038758439
A23: 21 | B23: 0 | C23: -7.960124606 | D23: -7.960124606 | E23: -1.037004266
A24: 22 | B24: 0 | C24: -8.044776262 | D24: -8.044776262 | E24: -1.001297079
A25: 23 | B25: 0 | C25: -8.156496311 | D25: -8.156496311 | E25: -0.9361080753
A26: 24 | B26: 1 | C26: -8.22294432 | D26: -8.22294432 | E26: -0.8738008614
A27: 25 | B27: 0 | C27: -8.138973891 | D27: -8.138973891 | E27: -0.8758915499
A28: 26 | B28: 0 | C28: -7.796322557 | D28: -7.796322557 | E28: -1.021608015
A29: 27 | B29: 0 | C29: -7.122652867 | D29: -7.122652867 | E29: -1.385247087
A30: 28 | B30: 0 | C30: -6.114547745 | D30: -6.114547745 | E30: -2.00930362
A31: 29 | B31: 0 | C31: -4.849548828 | D31: -4.849548828 | E31: -2.883490969
A32: 30 | B32: 0 | C32: -3.469917189 | D32: -3.469917189 | E32: -3.93875691
A33: 31 | B33: 0 | C33: -2.142559764 | D33: -2.142559764 | E33: -5.060237896
A34: 32 | B34: -1 | C34: -1.010102889 | D34: -1.010102889 | E34: -6.115804471
A35: 33 | B35: 0 | C35: -0.1523746029 | D35: -0.1523746029 | E35: -6.99058689
A36: 34 | B36: 0 | C36: 0.4269656835 | D36: 0.4269656835 | E36: -7.615441494
A37: 35 | B37: 0 | C37: 0.7848660513 | D37: 0.7848660513 | E37: -7.97982429
A38: 36 | B38: 0 | C38: 1.002865322 | D38: 1.002865322 | E38: -8.125828294
A39: 37 | B39: 0 | C39: 1.14736856 | D39: 1.14736856 | E39: -8.127381975
A40: 38 | B40: 0 | C40: 1.243346836 | D40: 1.243346836 | E40: -8.063659871 | J40: ↑√RCフィルタなのでシンボル間干渉が生じている
A41: 39 | B41: 0 | C41: 1.271387404 | D41: 1.271387404 | E41: -7.996663722
A42: 40 | B42: 1 | C42: 1.186963296 | D42: 1.186963296 | E42: -7.959750487
A43: 41 | B43: 0 | C43: 0.9512654923 | D43: 0.9512654923 | E43: -7.958494207
A44: 42 | B44: 0 | C44: 0.5588168294 | D44: 0.5588168294 | E44: -7.980314226
A45: 43 | B45: 0 | C45: 0.05002181236 | D45: 0.05002181236 | E45: -8.006851013
A46: 44 | B46: 0 | C46: -0.4953087688 | D46: -0.4953087688 | E46: -8.023705815
A47: 45 | B47: 0 | C47: -0.9791341108 | D47: -0.9791341108 | E47: -8.02491409
A48: 46 | B48: 0 | C48: -1.311562753 | D48: -1.311562753 | E48: -8.012598924
A49: 47 | B49: 0 | C49: -1.432672974 | D49: -1.432672974 | E49: -7.994070551
A50: 48 | B50: -1 | C50: -1.323756284 | D50: -1.323756284 | E50: -7.978621718
A51: 49 | B51: 0 | C51: -1.007222894 | D51: -1.007222894 | E51: -7.974970947
A52: 50 | B52: 0 | C52: -0.538184299 | D52: -0.538184299 | E52: -7.988913003
A53: 51 | B53: 0 | C53: 0.007900110347 | D53: 0.007900110347 | E53: -8.020278865
A54: 52 | B54: 0 | C54: 0.5478722031 | D54: 0.5478722031 | E54: -8.059060636
A55: 53 | B55: 0 | C55: 1.002161325 | D55: 1.002161325 | E55: -8.081941808
A56: 54 | B56: 0 | C56: 1.304525492 | D56: 1.304525492 | E56: -8.051469759
A57: 55 | B57: 0 | C57: 1.410390831 | D57: 1.410390831 | E57: -7.919894492
A58: 56 | B58: -1 | C58: 1.303321135 | D58: 1.303321135 | E58: -7.638146401
A59: 57 | B59: 0 | C59: 0.998317313 | D59: 0.998317313 | E59: -7.168181864
A60: 58 | B60: 0 | C60: 0.540684134 | D60: 0.540684134 | E60: -6.495064958
A61: 59 | B61: 0 | C61: -0.0001014349148 | D61: -0.0001014349148 | E61: -5.634624595
A62: 60 | B62: 0 | C62: -0.5410332934 | D62: -0.5410332934 | E62: -4.633677199
A63: 61 | B63: 0 | C63: -0.9989226335 | D63: -0.9989226335 | E63: -3.562227101
A64: 62 | B64: 0 | C64: -1.303863099 | D64: -1.303863099 | E64: -2.499789223
A65: 63 | B65: 0 | C65: -1.410191865 | D65: -1.410191865 | E65: -1.519946374
A66: 64 | B66: 1 | C66: -1.30300091 | D66: -1.30300091 | E66: -0.6777273707
A67: 65 | B67: 0 | C67: -0.9994504678 | D67: =C67 -> -0.9994504678 | E67: -0.003179832852
A68: 66 | B68: 0 | C68: -0.545252305 | D68: -0.545252305 | E68: 0.497698327
A69: 67 | B69: 0 | C69: -0.007504668056 | D69: -0.007504668056 | E69: 0.8360149504
A70: 68 | B70: 0 | C70: 0.5345901282 | D70: 0.5345901282 | E70: 1.030382005
A71: 69 | B71: 0 | C71: 0.9999688684 | D71: 0.9999688684 | E71: 1.098588199
A72: 70 | B72: 0 | C72: 1.316345774 | D72: 1.316345774 | E72: 1.053539853
A73: 71 | B73: 0 | C73: 1.430919116 | D73: 1.430919116 | E73: 0.9044543808
A74: 72 | B74: 1 | C74: 1.320326111 | D74: 1.320326111 | E74: 0.6620539789 | J74: ↑√RC x √RC=RC となりシンボル間干渉は生じない
A75: 73 | B75: 0 | C75: 0.9979428323 | D75: 0.9979428323 | E75: 0.3449221549
A76: 74 | B76: 0 | C76: 0.5156373569 | D76: 0.5156373569 | E76: -0.0161855217
A77: 75 | B77: 0 | C77: -0.04282653052 | D77: -0.04282653052 | E77: -0.3783942988
A78: 76 | B78: 0 | C78: -0.5777004437 | D78: -0.5777004437 | E78: -0.6917297063
A79: 77 | B79: 0 | C79: -0.9961393231 | D79: -0.9961393231 | E79: -0.9078722855
A80: 78 | B80: 0 | C80: -1.23625682 | D80: -1.23625682 | E80: -0.990133124
A81: 79 | B81: 0 | C81: -1.284602494 | D81: -1.284602494 | E81: -0.9217902101
A82: 80 | B82: 1 | C82: -1.180223385 | D82: -1.180223385 | E82: -0.7105165826
A83: 81 | B83: 0 | C83: -1.002208289 | D83: -1.002208289 | E83: -0.3878334465
A84: 82 | B84: 0 | C84: -0.8436013975 | D84: -0.8436013975 | E84: -0.003862897094
A85: 83 | B85: 0 | C85: -0.7797763098 | D85: -0.7797763098 | E85: 0.3812837637
A86: 84 | B86: 0 | C86: -0.8416907137 | D86: -0.8416907137 | E86: 0.70759624
A87: 85 | B87: 0 | C87: -1.00361085 | D87: -1.00361085 | E87: 0.9248222018
A88: 86 | B88: 0 | C88: -1.190378305 | D88: -1.190378305 | E88: 1.000133124
A89: 87 | B89: 0 | C89: -1.302662218 | D89: -1.302662218 | E89: 0.9227781395
A90: 88 | B90: -1 | C90: -1.252116457 | D90: -1.252116457 | E90: 0.705265294
A91: 89 | B91: 0 | C91: -0.9944764756 | D91: -0.9944764756 | E91: 0.3811092366
A92: 90 | B92: 0 | C92: -0.5484030585 | D92: -0.5484030585 | E92: -0.0003971373792
A93: 91 | B93: 0 | C93: 0.007504668056 | D93: 0.007504668056 | E93: -0.3815896247
A94: 92 | B94: 0 | C94: 0.5590652353 | D94: 0.5590652353 | E94: -0.7049676094
A95: 93 | B95: 0 | C95: 0.9939580749 | D95: 0.9939580749 | E95: -0.9216681507
A96: 94 | B96: 0 | C96: 1.238771593 | D96: 1.238771593 | E96: -0.9986988986
A97: 95 | B97: 0 | C97: 1.281934966 | D97: 1.281934966 | E97: -0.9239148701
A98: 96 | B98: 1 | C98: 1.1738827 | D98: 1.1738827 | E98: -0.7080231257
A99: 97 | B99: 0 | C99: 1.004623206 | D99: 1.004623206 | E99: -0.3832832123
A100: 98 | B100: 0 | C100: 0.8675026224 | D100: 0.8675026224 | E100: 0.001011509883
A101: 99 | B101: 0 | C101: 0.8236019243 | D101: 0.8236019243 | E101: 0.3857700701
A102: 100 | B102: 0 | C102: 0.8813155527 | D102: 0.8813155527 | E102: 0.7111565587
A103: 101 | B103: 0 | C103: 0.9991308134 | D103: 0.9991308134 | E103: 0.9261948556
A104: 102 | B104: 0 | C104: 1.109653383 | D104: 1.109653383 | E104: 0.9973848266
A105: 103 | B105: 0 | C105: 1.153678068 | D105: 1.153678068 | E105: 0.9146967084
A106: 104 | B106: 1 | C106: 1.108791193 | D106: 1.108791193 | E106: 0.6935215106
A107: 105 | B107: 0 | C107: 0.9996504994 | D107: 0.9996504994 | E107: 0.3717570706
A108: 106 | B108: 0 | C108: 0.8855325178 | D108: 0.8855325178 | E108: 0.002183747322
A109: 107 | B109: 0 | C109: 0.8311065923 | D109: 0.8311065923 | E109: -0.3585412648
A110: 108 | B110: 0 | C110: 0.8739478342 | D110: 0.8739478342 | E110: -0.661882035
A111: 109 | B111: 0 | C111: 1.00358512 | D111: 1.00358512 | E111: -0.8774567466
A112: 110 | B112: 0 | C112: 1.161400026 | D112: 1.161400026 | E112: -0.9983700269
A113: 111 | B113: 0 | C113: 1.261207715 | D113: 1.261207715 | E113: -1.040204843
A114: 112 | B114: 1 | C114: 1.221413798 | D114: 1.221413798 | E114: -1.033783389
A115: 113 | B115: 0 | C115: 0.9954901177 | D115: 0.9954901177 | E115: -1.013714007
A116: 114 | B116: 0 | C116: 0.5890941091 | D116: 0.5890941091 | E116: -1.006176041
A117: 115 | B117: 0 | C117: 0.05883495059 | D117: 0.05883495059 | E117: -1.019809622
A118: 116 | B118: 0 | C118: -0.5042436915 | D118: -0.5042436915 | E118: -1.04272919
A119: 117 | B119: 0 | C119: -0.9985920377 | D119: -0.9985920377 | E119: -1.046757036
A120: 118 | B120: 0 | C120: -1.335169133 | D120: -1.335169133 | E120: -0.9975738014
A121: 119 | B121: 0 | C121: -1.454313896 | D121: -1.454313896 | E121: -0.8674266276
A122: 120 | B122: 1 | C122: -1.33518543 | D122: -1.33518543 | E122: -0.6460740029
A123: 121 | B123: 0 | C123: -0.9985798341 | D123: -0.9985798341 | E123: -0.3461735214
A124: 122 | B124: 0 | C124: -0.5040367287 | D124: -0.5040367287 | E124: -0.001198631749
A125: 123 | B125: 0 | C125: 0.05933449257 | D125: 0.05933449257 | E125: 0.3434412469
A126: 124 | B126: 0 | C126: 0.5896186349 | D126: 0.5896186349 | E126: 0.6430368388
A127: 125 | B127: 0 | C127: 0.9953471093 | D127: 0.9953471093 | E127: 0.8656588705
A128: 126 | B128: 0 | C128: 1.219931937 | D128: 1.219931937 | E128: 0.9996658428
A129: 127 | B129: 0 | C129: 1.258540186 | D129: 1.258540186 | E129: 1.054373312
A130: 128 | B130: -1 | C130: 1.159055975 | D130: 1.159055975 | E130: 1.054148379
A131: 129 | B131: 0 | C131: 1.003961797 | D131: =C131 -> 1.003961797 | E131: 1.028532808
A132: 130 | B132: 0 | C132: 0.878689325 | D132: 0.878689325 | E132: 1.002259302
A133: 131 | B133: 0 | C133: 0.8391108024 | D133: 0.8391108024 | E133: 0.9887550915
A134: 132 | B134: 0 | C134: 0.8921846924 | D134: 0.8921846924 | E134: 0.9890860294
A135: 133 | B135: 0 | C135: 0.9986246164 | D135: 0.9986246164 | E135: 0.9959851689
A136: 134 | B136: 0 | C136: 1.096292222 | D136: 1.096292222 | E136: 1.000583158
A137: 135 | B137: 0 | C137: 1.132950816 | D137: 1.132950816 | E137: 0.998520946
A138: 136 | B138: 1 | C138: 1.092311885 | D138: 1.092311885 | E138: 0.9926159177
A139: 137 | B139: 0 | C139: 1.000650653 | D139: 1.000650653 | E139: 0.9909142399
A140: 138 | B140: 0 | C140: 0.9111374637 | D140: 0.9111374637 | E140: 1.001068887
A141: 139 | B141: 0 | C141: 0.8744326648 | D141: 0.8744326648 | E141: 1.023652949
A142: 140 | B142: 0 | C142: 0.9111374637 | D142: 0.9111374637 | E142: 1.047579349
A143: 141 | B143: 0 | C143: 1.000650653 | D143: 1.000650653 | E143: 1.050050066
A144: 142 | B144: 0 | C144: 1.092311885 | D144: 1.092311885 | E144: 1.001725995
A145: 143 | B145: 0 | C145: 1.132950816 | D145: 1.132950816 | E145: 0.8757856269
A146: 144 | B146: -1 | C146: 1.096308519 | D146: 1.096308519 | E146: 0.6579944945
A147: 145 | B147: 0 | C147: 0.9986124128 | D147: 0.9986124128 | E147: 0.3543852629
A148: 146 | B148: 0 | C148: 0.8919777296 | D148: 0.8919777296 | E148: -0.006203320954
A149: 147 | B149: 0 | C149: 0.8386112604 | D149: 0.8386112604 | E149: -0.3759280123
A150: 148 | B150: 0 | C150: 0.8781647992 | D150: 0.8781647992 | E150: -0.6973673226
A151: 149 | B151: 0 | C151: 1.004104806 | D151: 1.004104806 | E151: -0.9161850722
A152: 150 | B152: 0 | C152: 1.160537836 | D152: 1.160537836 | E152: -0.9936939905
A153: 151 | B153: 0 | C153: 1.261207715 | D153: 1.261207715 | E153: -0.9159856313
A154: 152 | B154: -1 | C154: 1.222292284 | D154: 1.222292284 | E154: -0.697209045
A155: 153 | B155: 0 | C155: 0.9949582281 | D155: 0.9949582281 | E155: -0.3761400455
A156: 154 | B156: 0 | C156: 0.5846701812 | D156: 0.5846701812 | E156: -0.006968114277
A157: 155 | B157: 0 | C157: 0.05083074056 | D157: 0.05083074056 | E157: 0.3532312637
A158: 156 | B158: 0 | C158: -0.511213429 | D158: -0.511213429 | E158: 0.656995909
A159: 157 | B159: 0 | C159: -0.9974109427 | D159: -0.9974109427 | E159: 0.875662457
A160: 158 | B160: 0 | C160: -1.321204597 | D160: -1.321204597 | E160: 1.002963951
A161: 159 | B161: 0 | C161: -1.430919116 | D161: -1.430919116 | E161: 1.052462655
A162: 160 | B162: 1 | C162: -1.315499881 | D162: -1.315499881 | E162: 1.050110684
A163: 161 | B163: 0 | C163: -1.000476351 | D163: -1.000476351 | E163: 1.024658272
A164: 162 | B164: 0 | C164: -0.5386001304 | D164: -0.5386001304 | E164: 0.99911401
A165: 163 | B165: 0 | C165: 0.0004995419773 | D165: 0.0004995419773 | E165: 0.9858226408
A166: 164 | B166: 0 | C166: 0.539331619 | D166: 0.539331619 | E166: 0.986204992
A167: 165 | B167: 0 | C167: 1.000345546 | D167: 1.000345546 | E167: 0.9943960787
A168: 166 | B168: 0 | C168: 1.314001723 | D168: 1.314001723 | E168: 1.002641463
A169: 167 | B169: 0 | C169: 1.428251588 | D169: 1.428251588 | E169: 1.005910953
A170: 168 | B170: 1 | C170: 1.31884425 | D170: 1.31884425 | E170: 1.003886129
A171: 169 | B171: 0 | C171: 0.9977998239 | D171: 0.9977998239 | E171: 0.9999156718
A172: 170 | B172: 0 | C172: 0.5161618827 | D172: 0.5161618827 | E172: 0.9980269582
A173: 171 | B173: 0 | C173: -0.04232698855 | D173: -0.04232698855 | E173: 0.9999384098
A174: 172 | B174: 0 | C174: -0.5774934809 | D174: -0.5774934809 | E174: 1.003851242
A175: 173 | B175: 0 | C175: -0.9961271195 | D175: -0.9961271195 | E175: 1.005722086
A176: 174 | B176: 0 | C176: -1.236273117 | D176: -1.236273117 | E176: 1.002281493
A177: 175 | B177: 0 | C177: -1.284602494 | D177: -1.284602494 | E177: 0.993996593
A178: 176 | B178: 1 | C178: -1.180223385 | D178: -1.180223385 | E178: 0.986032796
A179: 177 | B179: 0 | C179: -1.002208289 | D179: -1.002208289 | E179: 0.9861572475
A180: 178 | B180: 0 | C180: -0.8436013975 | D180: -0.8436013975 | E180: 1.000050329
A181: 179 | B181: 0 | C181: -0.7797763098 | D181: -0.7797763098 | E181: 1.025934845
A182: 180 | B182: 0 | C182: -0.8416907137 | D182: -0.8416907137 | E182: 1.051095351
A183: 181 | B183: 0 | C183: -1.00361085 | D183: -1.00361085 | E183: 1.05238578
A184: 182 | B184: 0 | C184: -1.190378305 | D184: -1.190378305 | E184: 1.001366025
A185: 183 | B185: 0 | C185: -1.302662218 | D185: -1.302662218 | E185: 0.8728615609
A186: 184 | B186: -1 | C186: -1.252116457 | D186: -1.252116457 | E186: 0.6542714099
A187: 185 | B187: 0 | C187: -0.9944764756 | D187: -0.9944764756 | E187: 0.3524607111
A188: 186 | B188: 0 | C188: -0.5484030585 | D188: -0.5484030585 | E188: -0.004248444272
A189: 187 | B189: 0 | C189: 0.007504668056 | D189: 0.007504668056 | E189: -0.3699171857
A190: 188 | B190: 0 | C190: 0.5590652353 | D190: 0.5590652353 | E190: -0.6897646445
A191: 189 | B191: 0 | C191: 0.9939580749 | D191: 0.9939580749 | E191: -0.9115487139
A192: 190 | B192: 0 | C192: 1.238771593 | D192: 1.238771593 | E192: -0.99663025
A193: 191 | B193: 0 | C193: 1.281934966 | D193: 1.281934966 | E193: -0.9281239271
A194: 192 | B194: 1 | C194: 1.1738827 | D194: 1.1738827 | E194: -0.7145265904
A195: 193 | B195: 0 | C195: 1.004623206 | D195: =C195 -> 1.004623206 | E195: -0.3884286983
A196: 194 | B196: 0 | C196: 0.8675026224 | D196: 0.8675026224 | E196: -0.0009527512917
A197: 195 | B197: 0 | C197: 0.8236019243 | D197: 0.8236019243 | E197: 0.3867943927
A198: 196 | B198: 0 | C198: 0.8813155527 | D198: 0.8813155527 | E198: 0.7137180679
A199: 197 | B199: 0 | C199: 0.9991308134 | D199: 0.9991308134 | E199: 0.9286396848
A200: 198 | B200: 0 | C200: 1.109653383 | D200: 1.109653383 | E200: 0.9986518769
... 825 more rows

Sheet RRC256
A2: SymbolRate | B2: 8 | C2: ←RRCフィルタ設計パラメータ（シンボル間隔：T） | H2: =SUM(H10:H265) -> 7.546359597 | I2: ←Gain
A3: RollOff | B3: 0.22 | C3: ←RRCフィルタ設計パラメータ（ロールオフ係数：β）
B8: f1 | C8: f2 | D8: h(t) | E8: win | F8: win x h(t)
H9: フィルタ係数
A10: 1e-06 | B10: =4*B$3*COS(PI()*A10*(1+B$3)/B$2)/(PI()*SQRT(B$2)*(1-(4*B$3*A10/B$2)^2)) -> 0.09903479478 | C10: =4*B$3*(SIN(PI()*A10*(1-B$3)/B$2)/(4*B$3*A10/B$2))/(PI()*SQRT(B$2)*(1-(4*B$3*A10/B$2)^2)) -> 0.2757716447 | D10: =(B10+C10)/(B$10+C$10) -> 1 | E10: =(COS(PI()*A10/128)+1)/2 -> 1 | F10: =D10*E10 -> 1 | G10: 0 | H10: 6.918280488e-08
A11: 1 | B11: =4*B$3*COS(PI()*A11*(1+B$3)/B$2)/(PI()*SQRT(B$2)*(1-(4*B$3*A11/B$2)^2)) -> 0.08896123961 | C11: 0.2748046819 | D11: =(B11+C11)/(B$10+C$10) -> 0.9705434146 | E11: =(COS(PI()*A11/128)+1)/2 -> 0.9998494093 | F11: =D11*E11 -> 0.9703972598 | G11: 1 | H11: 6.030113737e-07
A12: 2 | B12: 0.05984187383 | C12: 0.2720085174 | D12: 0.8853913815 | E12: 0.9993977281 | F12: 0.8848581352 | G12: 2 | H12: 1.789979776e-06
A13: 3 | B13: 0.01479479794 | C13: 0.2677220558 | D13: 0.7537673423 | E13: 0.9986452283 | F13: 0.7527461597 | G13: 3 | H13: 3.231003203e-06
A14: 4 | B14: -0.04160074456 | C14: 0.2626148028 | D14: 0.5896751895 | E14: 0.9975923633 | F14: 0.5882554659 | G14: 4 | H14: 3.958248986e-06
A15: 5 | B15: -0.1042630524 | C15: 0.2579561878 | D15: 0.4100600183 | E15: 0.9962397673 | F15: 0.4085180972 | G15: 5 | H15: 2.778934297e-06
A16: 6 | B16: -0.1692500815 | C16: 0.2564395174 | D16: 0.2326252346 | E16: 0.994588255 | F16: 0.2313663262 | G16: 6 | H16: -1.14871135e-06
A17: 7 | B17: -0.2378197229 | C17: 0.2654138799 | D17: 0.07362241972 | E17: 0.9926388212 | F17: 0.07308047192 | G17: 7 | H17: -7.714926441e-06
A18: 8 | B18: -0.3382430003 | C18: 0.317976074 | D18: -0.05407304738 | E18: 0.9903926402 | F18: -0.05355354816 | G18: 8 | H18: -1.54915268e-05
A19: 9 | B19: -1.940523042 | C19: 1.887173446 | D19: -0.1423390605 | E19: 0.987851065 | F19: -0.1406097926 | G19: 9 | H19: -2.181644101e-05
A20: 10 | B20: -0.03700085926 | C20: -0.03363714478 | D20: -0.1884652893 | E20: 0.9850156266 | F20: -0.185641255 | G20: 10 | H20: -2.341800851e-05
A21: 11 | B21: -0.1129220723 | C21: 0.03982146574 | D21: -0.1950356207 | E21: 0.9818880329 | F21: -0.191503142 | G21: 11 | H21: -1.748170046e-05
A22: 12 | B22: -0.1148214036 | C22: 0.05144332482 | D22: -0.1690954905 | E22: 0.9784701679 | F22: -0.165454893 | G22: 12 | H22: -2.876386974e-06
A23: 13 | B23: -0.09463600618 | C23: 0.04937095732 | D23: -0.1207691333 | E23: 0.9747640903 | F23: -0.1177214144 | G23: 13 | H23: 1.886403278e-05
A24: 14 | B24: -0.06580682157 | C24: 0.04273170232 | D24: -0.06156542904 | E24: 0.9707720326 | F24: -0.05976599669 | G24: 14 | H24: 4.321299109e-05
A25: 15 | B25: -0.03559468344 | C25: 0.03460380203 | D25: -0.002643715008 | E25: 0.9664963994 | F25: -0.002555141037 | G25: 15 | H25: 6.325456416e-05
A26: 16 | B26: -0.008846906005 | C26: 0.02635062807 | D26: 0.04670069727 | E26: 0.9619397663 | F26: 0.04492325782 | G26: 16 | H26: 7.124465448e-05
A27: 17 | B27: 0.01136445203 | C27: 0.01866633088 | D27: 0.0801234444 | E27: 0.9571048779 | F27: 0.07668653946 | G27: 17 | H27: 6.084981793e-05
A28: 18 | B28: 0.02359936344 | C28: 0.01191887042 | D28: 0.09476420394 | E28: 0.9519946466 | F28: 0.09021501484 | G28: 18 | H28: 2.950714294e-05
A29: 19 | B29: 0.02789240985 | C29: 0.006288445386 | D29: 0.09119601916 | E29: 0.9466121506 | F29: 0.08632725982 | G29: 19 | H29: -1.98051272e-05
A30: 20 | B30: 0.02547278961 | C30: 0.001833860694 | D30: 0.07285533927 | E30: 0.9409606322 | F30: 0.0685540061 | G30: 20 | H30: -7.805922392e-05
A31: 21 | B31: 0.01837161873 | C31: -0.001469964978 | D31: 0.04509435263 | E31: 0.9350434956 | F31: 0.04216518111 | G31: 21 | H31: -0.0001313554715
A32: 22 | B32: 0.008971519109 | C32: -0.003707239301 | D32: 0.01404532915 | E32: 0.928864305 | F32: 0.0130462049 | G32: 22 | H32: -0.0001637879362
A33: 23 | B33: -0.0004320088273 | C33: -0.005002744742 | D33: -0.01450016061 | E33: 0.9224267826 | F33: -0.0133753365 | G33: 23 | H33: -0.000161502778
A34: 24 | B34: -0.007992223306 | C34: -0.005506742509 | D34: -0.03601583216 | E34: 0.9157348062 | F34: -0.03298095108 | G34: 24 | H34: -0.0001170146341
A35: 25 | B35: -0.01254772151 | C35: -0.0053821988 | D35: -0.04783781287 | E35: 0.9087924066 | F35: -0.04347464108 | G35: 25 | H35: -3.260202436e-05
A36: 26 | B36: -0.0137106133 | C36: -0.004793920734 | D36: -0.04937090745 | E36: 0.9016037657 | F36: -0.04451299607 | G36: 26 | H36: 7.834529579e-05
A37: 27 | B37: -0.01180985747 | C37: -0.003899502657 | D37: -0.04191326101 | E37: 0.8941732138 | F37: -0.0374777153 | G37: 27 | H37: 0.000192774214
A38: 28 | B38: -0.007717393107 | C38: -0.002842098765 | D38: -0.02817318691 | E38: 0.8865052267 | F38: -0.02497567745 | G38: 28 | H38: 0.000282307174
A39: 29 | B39: -0.00260184819 | C39: -0.001745052307 | D39: -0.01159772096 | E39: 0.8786044233 | F39: -0.01018980893 | G39: 29 | H39: 0.0003197858857
A40: 30 | B40: 0.002337635359 | C40: -0.0007083743512 | D40: 0.004346939744 | E40: 0.8704755627 | F40: 0.003783904819 | G40: 30 | H40: 0.0002866182377 | L40: RRCフィルタの係数
A41: 31 | B41: 0.00610715193 | C41: 0.000192996071 | D41: 0.01680907086 | E41: 0.8621235415 | F41: 0.0144914957 | G41: 31 | H41: 0.0001790849743
A42: 32 | B42: =4*B$3*COS(PI()*A42*(1+B$3)/B$2)/(PI()*SQRT(B$2)*(1-(4*B$3*A42/B$2)^2)) -> 0.008084020181 | C42: =4*B$3*(SIN(PI()*A42*(1-B$3)/B$2)/(4*B$3*A42/B$2))/(PI()*SQRT(B$2)*(1-(4*B$3*A42/B$2)^2)) -> 0.0009092869356 | D42: =(B42+C42)/(B$10+C$10) -> 0.02399453737 | E42: 0.8535533906 | F42: 0.02048061873 | G42: 32 | H42: 1.175503866e-05
A43: 33 | B43: 0.008090649969 | C43: 0.001414544287 | D43: 0.02536027468 | E43: 0.8447702724 | F43: 0.02142360615 | G43: 33 | H43: -0.0001833504709
A44: 34 | B44: 0.006373310735 | C44: 0.00170409378 | D44: 0.0215508691 | E44: 0.8357794774 | F44: 0.01801177412 | G44: 34 | H44: -0.0003622778145
A45: 35 | B45: 0.00350085038 | C45: 0.001791104882 | D45: 0.01411916847 | E45: 0.8265864215 | F45: 0.01167071294 | G45: 35 | H45: -0.0004785985575
A46: 36 | B46: 0.000211881408 | C46: 0.001702569627 | D46: 0.005107839229 | E46: 0.8171966421 | F46: 0.004174109067 | G46: 36 | H46: -0.0004949142368
A47: 37 | B47: -0.002754238529 | C47: 0.001475008644 | D47: -0.003413041372 | E47: 0.8076157953 | F47: -0.002756426122 | G47: 37 | H47: -0.0003937082087
A48: 38 | B48: -0.004807836505 | C48: 0.001150200121 | D48: -0.009758734107 | E48: 0.7978496522 | F48: -0.007786002613 | G48: 38 | H48: -0.000184635141
A49: 39 | B49: -0.005613092263 | C49: 0.0007711943152 | D49: -0.01291839584 | E49: 0.7879040957 | F49: -0.01017845699 | G49: 39 | H49: 9.413873614e-05
A50: 40 | B50: -0.005130048307 | C50: 0.0003788303949 | D50: -0.01267645753 | E50: 0.7777851165 | F50: -0.009859559998 | G50: 40 | H50: 0.0003817164065
A51: 41 | B51: -0.003592329966 | C51: 8.917394197e-06 | D51: -0.009560701725 | E51: 0.7674988099 | F51: -0.007337827196 | G51: 41 | H51: 0.0006068623576
A52: 42 | B52: -0.001431363091 | C52: -0.0003098188508 | D52: -0.004645549698 | E52: 0.7570513721 | F52: -0.003516919773 | G52: 42 | H52: 0.0007047254136 | N52: f1 | P52: f2
A53: 43 | B53: 0.0008324871855 | C53: -0.0005569817015 | D53: 0.0007350607006 | E53: 0.7464490961 | F53: 0.0005486853955 | G53: 43 | H53: 0.0006341958289
A54: 44 | B54: 0.002706688975 | C54: -0.0007209591736 | D54: 0.005298014101 | E54: 0.7356983684 | F54: 0.00389774033 | G54: 44 | H54: 0.0003915507558
A55: 45 | B55: 0.003826732171 | C55: -0.0007986563769 | D55: 0.008079038873 | E55: 0.7248056648 | F55: 0.005855733141 | G55: 45 | H55: 1.642122582e-05
A56: 46 | B56: 0.004020747117 | C56: -0.0007946140548 | D56: 0.008607464341 | E56: 0.7137775467 | F56: 0.006143814781 | G56: 46 | H56: -0.0004124471681
A57: 47 | B57: 0.003328425161 | C57: -0.0007196525697 | D57: 0.006960319559 | E57: 0.702620657 | F57: 0.004890464301 | G57: 47 | H57: -0.000791904034
A58: 48 | B58: 0.001974280339 | C58: -0.0005891984886 | D58: 0.003695459056 | E58: 0.6913417162 | F58: 0.002554825006 | G58: 48 | H58: -0.001017223654
A59: 49 | B59: 0.0003046243429 | C59: -0.0004214561795 | D59: -0.0003117124583 | E59: 0.6799475183 | F59: -0.0002119481124 | G59: 49 | H59: -0.00100835618
A60: 50 | B60: -0.001295691459 | C60: -0.0002355802654 | D60: -0.004085500044 | E60: 0.6684449267 | F60: -0.002730931777 | G60: 50 | H60: -0.0007334473894
A61: 51 | B61: -0.002487832245 | C61: -4.998788219e-05 | D61: -0.006771015277 | E61: 0.6568408702 | F61: -0.004447479566 | G61: 51 | H61: -0.0002233839145
A62: 52 | B62: -0.003047118273 | C62: 0.0001190754599 | D62: -0.007812146498 | E62: 0.6451423386 | F62: -0.005039946462 | G62: 52 | H62: 0.0004274179128
A63: 53 | B63: -0.002901795535 | C63: 0.0002586335098 | D63: -0.007052072076 | E63: 0.6333563787 | F63: -0.004466474833 | G63: 53 | H63: 0.001075929957
A64: 54 | B64: -0.002136567155 | C64: 0.0003596914402 | D64: -0.004740782248 | E64: 0.62149009 | F64: -0.002946349186 | G64: 54 | H64: 0.001559428671
A65: 55 | B65: -0.000962787212 | C65: 0.000417547857 | D65: -0.001454722485 | E65: 0.6095506201 | F65: -0.0008867269929 | G65: 55 | H65: 0.001733027462
A66: 56 | B66: 0.000335962904 | C66: 0.0004317240624 | D66: 0.002048222457 | E66: 0.597545161 | F66: 0.001223905418 | G66: 56 | H66: 0.001507660069
A67: 57 | B67: 0.001469672257 | C67: 0.0004055557373 | D67: 0.005003190438 | E67: 0.5854809444 | F67: 0.002929272663 | G67: 57 | H67: 0.0008792494911
A68: 58 | B68: 0.002204379056 | C68: 0.0003455139587 | D68: 0.00680322627 | E68: 0.5733652372 | F68: 0.003900733444 | G68: 58 | H68: -5.915723118e-05
A69: 59 | B69: 0.002408353586 | C69: 0.0002603371088 | D69: 0.007120183685 | E69: 0.5612053376 | F69: 0.003995885089 | G69: 59 | H69: -0.001127326869
A70: 60 | B70: 0.002073323503 | C70: 0.0001600622863 | D70: 0.005958771125 | E70: 0.5490085702 | F70: 0.003271416415 | G70: 60 | H70: -0.002090108049
A71: 61 | B71: 0.001307923056 | C71: 5.504440242e-05 | D71: 0.003636456887 | E71: 0.5367822818 | F71: 0.001951985625 | G71: 61 | H71: -0.002706892103
A72: 62 | B72: 0.0003066004998 | C72: -4.495608502e-05 | D72: 0.0006980787609 | E72: 0.5245338372 | F72: 0.0003661659311 | G72: 62 | H72: -0.002788364653
A73: 63 | B73: -0.0006978000971 | C73: -0.0001315487631 | D73: -0.002212739091 | E73: 0.5122706143 | F73: -0.001133521213 | G73: 63 | H73: -0.002247738712
A74: 64 | B74: -0.001486632615 | C74: -0.0001983012712 | D74: -0.004495477423 | E74: 0.5 | F74: -0.002247738712 | G74: 64 | H74: -0.001133521213
A75: 65 | B75: -0.00190167204 | C75: -0.0002411084814 | D75: -0.005717032302 | E75: =(COS(PI()*A75/128)+1)/2 -> 0.4877293857 | F75: =D75*E75 -> -0.002788364653 | G75: 65 | H75: 0.0003661659311
A76: 66 | B76: -0.001875490839 | C76: -0.0002583320714 | D76: -0.005693133003 | E76: 0.4754661628 | F76: -0.002706892103 | G76: 66 | H76: 0.001951985625
A77: 67 | B77: -0.001440463751 | C77: -0.0002507193041 | D77: -0.004512150479 | E77: 0.4632177182 | F77: -0.002090108049 | G77: 67 | H77: 0.003271416415
A78: 68 | B78: -0.0007157629398 | C78: -0.0002211270805 | D78: -0.002499663618 | E78: 0.4509914298 | F78: -0.001127326869 | G78: 68 | H78: 0.003995885089
A79: 69 | B79: 0.0001235605692 | C79: -0.0001740910635 | D79: -0.0001348175724 | E79: 0.4387946624 | F79: -5.915723118e-05 | G79: 69 | H79: 0.003900733444
A80: 70 | B80: 0.0008877258214 | C80: -0.0001152890677 | D80: 0.002060895098 | E80: 0.4266347628 | F80: 0.0008792494911 | G80: 70 | H80: 0.002929272663
A81: 71 | B81: 0.001414172649 | C81: -5.095256325e-05 | D81: 0.003637130909 | E81: 0.4145190556 | F81: 0.001507660069 | G81: 71 | H81: 0.001223905418
A82: 72 | B82: 0.001601249583 | C82: 1.271996019e-05 | D82: 0.004306141445 | E82: 0.402454839 | F82: 0.001733027462 | G82: 72 | H82: -0.0008867269929
A83: 73 | B83: 0.001426853311 | C83: 7.009850339e-05 | D83: 0.00399393302 | E83: 0.3904493799 | F83: 0.001559428671 | G83: 73 | H83: -0.002946349186
A84: 74 | B84: 0.0009488378439 | C84: 0.0001165648457 | D84: 0.002842541049 | E84: 0.37850991 | F84: 0.001075929957 | G84: 74 | H84: -0.004466474833
A85: 75 | B85: 0.0002881003542 | C85: 0.0001488334332 | D85: 0.001165758486 | E85: 0.3666436213 | F85: 0.0004274179128 | G85: 75 | H85: -0.005039946462
A86: 76 | B86: -0.0004010739928 | C86: 0.0001651322653 | D86: -0.000629502865 | E86: 0.3548576614 | F86: -0.0002233839145 | G86: 76 | H86: -0.004447479566
A87: 77 | B87: -0.000966327682 | C87: 0.0001652392637 | D87: -0.002137338994 | E87: 0.3431591298 | F87: -0.0007334473894 | G87: 77 | H87: -0.002730931777
A88: 78 | B88: -0.001290278358 | C88: 0.000150382093 | D88: -0.003041293172 | E88: 0.3315550733 | F88: -0.00100835618 | G88: 78 | H88: -0.0002119481124
A89: 79 | B89: -0.001314268614 | C89: 0.0001230203108 | D89: -0.003178302659 | E89: 0.3200524817 | F89: -0.001017223654 | G89: 79 | H89: 0.002554825006
A90: 80 | B90: -0.001048153218 | C90: 8.653726011e-05 | D90: -0.002565633503 | E90: 0.3086582838 | F90: -0.000791904034 | G90: 80 | H90: 0.004890464301
A91: 81 | B91: -0.0005647086225 | C91: 4.487475309e-05 | D91: -0.001386939536 | E91: 0.297379343 | F91: -0.0004124471681 | G91: 81 | H91: 0.006143814781
A92: 82 | B92: 1.93574316e-05 | C92: 2.146056719e-06 | D92: 5.737224887e-05 | E92: 0.2862224533 | F92: 1.642122582e-05 | G92: 82 | H92: 0.005855733141
A93: 83 | B93: 0.0005710183982 | C93: -3.773800005e-05 | D93: 0.001422815464 | E93: 0.2751943352 | F93: 0.0003915507558 | G93: 83 | H93: 0.00389774033
A94: 84 | B94: 0.0009707523672 | C94: -7.139855276e-05 | D94: 0.002399515376 | E94: 0.2643016316 | F94: 0.0006341958289 | G94: 84 | H94: 0.0005486853955
A95: 85 | B95: 0.001137994513 | C95: -9.62485799e-05 | D95: 0.002779423788 | E95: 0.2535509039 | F95: 0.0007047254136 | G95: 85 | H95: -0.003516919773
A96: 86 | B96: 0.001046896063 | C96: -0.0001106655457 | D96: 0.002497904034 | E96: 0.2429486279 | F96: 0.0006068623576 | G96: 86 | H96: -0.007337827196
A97: 87 | B97: 0.000729418572 | C97: -0.0001140678842 | D97: 0.001641782592 | E97: 0.2325011901 | F97: 0.0003817164065 | G97: 87 | H97: -0.009859559998
A98: 88 | B98: 0.0002656776085 | C98: -0.0001068952446 | D98: 0.000423638303 | E98: 0.2222148835 | F98: 9.413873614e-05 | G98: 88 | H98: -0.01017845699
A99: 89 | B99: -0.0002357783154 | C99: -9.050068563e-05 | D99: -0.0008705266685 | E99: 0.2120959043 | F99: -0.000184635141 | G99: 89 | H99: -0.007786002613
A100: 90 | B100: -0.0006630033418 | C100: -6.697003452e-05 | D100: -0.001947600947 | E100: 0.2021503478 | F100: -0.0003937082087 | G100: 90 | H100: -0.002756426122
A101: 91 | B101: -0.0009253120989 | C101: -3.888890304e-05 | D101: -0.002572530513 | E101: 0.1923842047 | F101: -0.0004949142368 | G101: 91 | H101: 0.004174109067
A102: 92 | B102: -0.0009722019245 | C102: -9.081041442e-06 | D102: -0.002618105941 | E102: 0.1828033579 | F102: -0.0004785985575 | G102: 92 | H102: 0.01167071294
A103: 93 | B103: -0.0008026643992 | C103: 1.965733085e-05 | D103: -0.00208909716 | E103: 0.1734135785 | F103: -0.0003622778145 | G103: 93 | H103: 0.01801177412
A104: 94 | B104: -0.0004632712041 | C104: 4.48037915e-05 | D104: -0.001116489389 | E104: 0.1642205226 | F104: -0.0001833504709 | G104: 94 | H104: 0.02142360615
A105: 95 | B105: -3.593343774e-05 | C105: 6.431630134e-05 | D105: 7.572672349e-05 | E105: 0.1552297276 | F105: 1.175503866e-05 | G105: 95 | H105: 0.02048061873
A106: 96 | B106: =4*B$3*COS(PI()*A106*(1+B$3)/B$2)/(PI()*SQRT(B$2)*(1-(4*B$3*A106/B$2)^2)) -> 0.0003815545305 | C106: =4*B$3*(SIN(PI()*A106*(1-B$3)/B$2)/(4*B$3*A106/B$2))/(PI()*SQRT(B$2)*(1-(4*B$3*A106/B$2)^2)) -> 7.678453137e-05 | D106: =(B106+C106)/(B$10+C$10) -> 0.001222868696 | E106: 0.1464466094 | F106: 0.0001790849743 | G106: 96 | H106: 0.0144914957
A107: 97 | B107: 0.0006976333034 | C107: 8.151610534e-05 | D107: 0.002078804756 | E107: 0.1378764585 | F107: 0.0002866182377 | G107: 97 | H107: 0.003783904819
A108: 98 | B108: 0.0008468141207 | C108: 7.85541856e-05 | D108: 0.00246892318 | E108: 0.1295244373 | F108: 0.0003197858857 | G108: 98 | H108: -0.01018980893
A109: 99 | B109: 0.0008029887916 | C109: 6.86290181e-05 | D109: 0.0023255145 | E109: 0.1213955767 | F109: 0.000282307174 | G109: 99 | H109: -0.02497567745
A110: 100 | B110: 0.0005835681247 | C110: 5.30516477e-05 | D110: 0.001698529442 | E110: 0.1134947733 | F110: 0.000192774214 | G110: 100 | H110: -0.0374777153
A111: 101 | B111: 0.0002439127482 | C111: 3.356257179e-05 | D111: 0.0007403163095 | E111: 0.1058267862 | F111: 7.834529579e-05 | G111: 101 | H111: -0.04451299607
A112: 102 | B112: -0.0001363374274 | C112: 1.215128586e-05 | D112: -0.0003313340659 | E112: 0.09839623426 | F112: -3.260202436e-05 | G112: 102 | H112: -0.04347464108
A113: 103 | B113: -0.0004717216065 | C113: -9.135707238e-06 | D113: -0.001282948379 | E113: 0.09120759342 | F113: -0.0001170146341 | G113: 103 | H113: -0.03298095108
A114: 104 | B114: -0.0006899736471 | C114: -2.838085256e-05 | D114: -0.001916601275 | E114: 0.08426519385 | F114: -0.000161502778 | G114: 104 | H114: -0.0133753365
A115: 105 | B115: -0.0007474061482 | C115: -4.395941931e-05 | D115: -0.002111398002 | E115: 0.07757321738 | F115: -0.0001637879362 | G115: 105 | H115: 0.0130462049
A116: 106 | B116: -0.0006374299679 | C116: -5.46680933e-05 | D116: -0.001846547947 | E116: 0.071135695 | F116: -0.0001313554715 | G116: 106 | H116: 0.04216518111
A117: 107 | B117: -0.0003906017125 | C117: -5.980891278e-05 | D117: -0.00120171528 | E117: 0.06495650445 | F117: -7.805922392e-05 | G117: 107 | H117: 0.0685540061
A118: 108 | B118: -6.650756343e-05 | C118: -5.922361362e-05 | D118: -0.0003354562884 | E118: 0.05903936783 | F118: -1.98051272e-05 | G118: 108 | H118: 0.08632725982
A119: 109 | B119: 0.0002604313394 | C119: -5.327807687e-05 | D119: 0.0005526939794 | E119: 0.0533878494 | F119: 2.950714294e-05 | G119: 109 | H119: 0.09021501484
A120: 110 | B120: 0.0005178918145 | C120: -4.280097641e-05 | D120: 0.001267563169 | E120: 0.04800535344 | F120: 6.084981793e-05 | G120: 110 | H120: 0.07668653946
A121: 111 | B121: 0.0006515018254 | C121: -2.898453343e-05 | D121: 0.001660903406 | E121: 0.04289512215 | F121: 7.124465448e-05 | G121: 111 | H121: 0.04492325782
A122: 112 | B122: 0.0006361712944 | C122: -1.325820017e-05 | D122: 0.001661959424 | E122: 0.03806023374 | F122: 6.325456416e-05 | G122: 112 | H122: -0.002555141037
A123: 113 | B123: 0.0004805737799 | C123: 2.852092148e-06 | D123: 0.001289801405 | E123: 0.03350360058 | F123: 4.321299109e-05 | G123: 113 | H123: -0.05976599669
A124: 114 | B124: 0.000224038081 | C124: 1.786587568e-05 | D124: 0.0006454103537 | E124: 0.02922796741 | F124: 1.886403278e-05 | G124: 114 | H124: -0.1177214144
A125: 115 | B125: -7.319902552e-05 | C125: 3.047861747e-05 | D125: -0.0001139799202 | E125: 0.0252359097 | F125: -2.876386974e-06 | G125: 115 | H125: -0.165454893
A126: 116 | B126: -0.0003440034457 | C126: 3.966972561e-05 | D126: -0.0008119756975 | E126: 0.02152983213 | F126: -1.748170046e-05 | G126: 116 | H126: -0.191503142
A127: 117 | B127: -0.0005293885401 | C127: 4.47796438e-05 | D127: -0.001292957765 | E127: 0.0181119671 | F127: -2.341800851e-05 | G127: 117 | H127: -0.185641255
A128: 118 | B128: -0.0005912487497 | C128: 4.555075113e-05 | D128: -0.001455946166 | E128: 0.0149843734 | F128: -2.181644101e-05 | G128: 118 | H128: -0.1406097926
A129: 119 | B129: -0.000520058896 | C129: 4.213025375e-05 | D129: -0.001275134555 | E129: 0.01214893498 | F129: -1.54915268e-05 | G129: 119 | H129: -0.05355354816
A130: 120 | B130: -0.0003360147301 | C130: 3.503671208e-05 | D130: -0.0008030225372 | E130: 0.009607359798 | F130: -7.714926441e-06 | G130: 120 | H130: 0.07308047192
A131: 121 | B131: -8.358350338e-05 | C131: 2.50949892e-05 | D131: -0.0001560499181 | E131: 0.007361178806 | F131: -1.14871135e-06 | G131: 121 | H131: 0.2313663262
A132: 122 | B132: 0.0001791163588 | C132: 1.334697159e-05 | D132: 0.0005135005969 | E132: 0.005411745018 | F132: 2.778934297e-06 | G132: 122 | H132: 0.4085180972
A133: 123 | B133: 0.0003935967832 | C133: 9.472056397e-07 | D133: 0.001052660647 | E133: 0.003760232701 | F133: 3.958248986e-06 | G133: 123 | H133: 0.5882554659
A134: 124 | B134: 0.0005139297144 | C134: -1.094650913e-05 | D134: 0.001341981227 | E134: 0.002407636664 | F134: 3.231003203e-06 | G134: 124 | H134: 0.7527461597
A135: 125 | B135: 0.000516487173 | C135: -2.127756232e-05 | D135: 0.001321240935 | E135: 0.001354771661 | F135: 1.789979776e-06 | G135: 125 | H135: 0.8848581352
A136: 126 | B136: 0.0004044475511 | C136: -2.918091999e-05 | D136: 0.001001227811 | E136: 0.0006022718974 | F136: 6.030113737e-07 | G136: 126 | H136: 0.9703972598
A137: 127 | B137: 0.0002062417562 | C137: -3.405204562e-05 | D137: 0.0004594096912 | E137: 0.0001505906519 | F137: 6.918280488e-08 | G137: 127 | H137: 1
G138: 128 | H138: 0.9703972598
G139: 129 | H139: 0.8848581352
G140: 130 | H140: 0.7527461597
G141: 131 | H141: 0.5882554659
G142: 132 | H142: 0.4085180972
G143: 133 | H143: 0.2313663262
G144: 134 | H144: 0.07308047192
G145: 135 | H145: -0.05355354816
G146: 136 | H146: -0.1406097926
G147: 137 | H147: -0.185641255
G148: 138 | H148: -0.191503142
G149: 139 | H149: -0.165454893
G150: 140 | H150: -0.1177214144
G151: 141 | H151: -0.05976599669
G152: 142 | H152: -0.002555141037
G153: 143 | H153: 0.04492325782
G154: 144 | H154: 0.07668653946
G155: 145 | H155: 0.09021501484
G156: 146 | H156: 0.08632725982
G157: 147 | H157: 0.0685540061
G158: 148 | H158: 0.04216518111
G159: 149 | H159: 0.0130462049
G160: 150 | H160: -0.0133753365
G161: 151 | H161: -0.03298095108
G162: 152 | H162: -0.04347464108
G163: 153 | H163: -0.04451299607
G164: 154 | H164: -0.0374777153
G165: 155 | H165: -0.02497567745
G166: 156 | H166: -0.01018980893
G167: 157 | H167: 0.003783904819
G168: 158 | H168: 0.0144914957
G169: 159 | H169: 0.02048061873
G170: 160 | H170: 0.02142360615
G171: 161 | H171: 0.01801177412
G172: 162 | H172: 0.01167071294
G173: 163 | H173: 0.004174109067
G174: 164 | H174: -0.002756426122
G175: 165 | H175: -0.007786002613
G176: 166 | H176: -0.01017845699
G177: 167 | H177: -0.009859559998
G178: 168 | H178: -0.007337827196
G179: 169 | H179: -0.003516919773
G180: 170 | H180: 0.0005486853955
G181: 171 | H181: 0.00389774033
G182: 172 | H182: 0.005855733141
G183: 173 | H183: 0.006143814781
G184: 174 | H184: 0.004890464301
G185: 175 | H185: 0.002554825006
G186: 176 | H186: -0.0002119481124
G187: 177 | H187: -0.002730931777
G188: 178 | H188: -0.004447479566
G189: 179 | H189: -0.005039946462
G190: 180 | H190: -0.004466474833
G191: 181 | H191: -0.002946349186
G192: 182 | H192: -0.0008867269929
G193: 183 | H193: 0.001223905418
G194: 184 | H194: 0.002929272663
G195: 185 | H195: 0.003900733444
G196: 186 | H196: 0.003995885089
G197: 187 | H197: 0.003271416415
G198: 188 | H198: 0.001951985625
G199: 189 | H199: 0.0003661659311
G200: 190 | H200: -0.001133521213
G201: 191 | H201: -0.002247738712
G202: 192 | H202: -0.002788364653
G203: 193 | H203: -0.002706892103
G204: 194 | H204: -0.002090108049
G205: 195 | H205: -0.001127326869
... 60 more rows

Sheet FIR_RRC256
B1: Input | C1: Result | D1: Input2 | E1: Result2
A2: 0 | B2: 1 | C2: -7.999999853 | D2: =C2 -> -7.999999853 | E2: -1.000000064
A3: 1 | B3: 0 | C3: -7.999998648 | D3: =C3 -> -7.999998648 | E3: -1.000000624 | J3: ←このボタンを押すと「RRFC64」を係数としB列を入力としたFIRフィルタを実行します。
A4: 2 | B4: 0 | C4: -7.999995492 | D4: -7.999995492 | E4: -1.000002284
A5: 3 | B5: 0 | C5: -7.999990539 | D5: -7.999990539 | E5: -1.000005281
A6: 4 | B6: 0 | C6: -7.999985572 | D6: -7.999985572 | E6: -1.000008953 | J6: ←このボタンを押すと「RRFC64」を係数としB列を入力としたFIRフィルタを実行し、その結果（D列）を入力として再度FIRフィルタを実行します。
A7: 5 | B7: 0 | C7: -7.999983876 | D7: -7.999983876 | E7: -1.00001153
A8: 6 | B8: 0 | C8: -7.999989258 | D8: -7.999989258 | E8: -1.000010465
A9: 7 | B9: 0 | C9: -8.000004398 | D9: -8.000004398 | E9: -1.000003308
A10: 8 | B10: 1 | C10: -8.000028991 | D10: -8.000028991 | E10: -0.9999889385
A11: 9 | B11: 0 | C11: -8.000058258 | D11: -8.000058258 | E11: -0.9999687016
A12: 10 | B12: 0 | C12: -8.000083523 | D12: -8.000083523 | E12: -0.9999469791
A13: 11 | B13: 0 | C13: -8.000094235 | D13: -8.000094235 | E13: -0.9999307632
A14: 12 | B14: 0 | C14: -8.00008103 | D14: -8.00008103 | E14: -0.9999280951
A15: 13 | B15: 0 | C15: -8.000039235 | D15: -8.000039235 | E15: -0.9999455934
A16: 14 | B16: 0 | C16: -7.999971776 | D16: -7.999971776 | E16: -0.9999856778
A17: 15 | B17: 0 | C17: -7.999890433 | D17: -7.999890433 | E17: -1.000044353
A18: 16 | B18: -1 | C18: -7.999814753 | D18: -7.999814753 | E18: -1.000110439
A19: 17 | B19: 0 | C19: -7.999768536 | D19: -7.999768536 | E19: -1.000166883
A20: 18 | B20: 0 | C20: -7.999773438 | D20: -7.999773438 | E20: -1.000194253
A21: 19 | B21: 0 | C21: -7.999841945 | D21: -7.999841945 | E21: -1.000175881
A22: 20 | B22: 0 | C22: -7.99997174 | D22: -7.99997174 | E22: -1.000103474
A23: 21 | B23: 0 | C23: -8.000143194 | D23: -8.000143194 | E23: -0.9999816285
A24: 22 | B24: 0 | C24: -8.000321234 | D24: -8.000321234 | E24: -0.9998296997
A25: 23 | B25: 0 | C25: -8.000461815 | D25: -8.000461815 | E25: -0.9996798913
A26: 24 | B26: 1 | C26: -8.000521914 | D26: -8.000521914 | E26: -0.9995713506
A27: 25 | B27: 0 | C27: -8.000470737 | D27: -8.000470737 | E27: -0.999541111
A28: 26 | B28: 0 | C28: -8.000300336 | D28: -8.000300336 | E28: -0.9996137855
A29: 27 | B29: 0 | C29: -8.000031708 | D29: -8.000031708 | E29: -0.9997926027
A30: 28 | B30: 0 | C30: -7.999713983 | D30: -7.999713983 | E30: -1.000054469
A31: 29 | B31: 0 | C31: -7.99941604 | D31: -7.99941604 | E31: -1.000351098
A32: 30 | B32: 0 | C32: -7.999211712 | D32: -7.999211712 | E32: -1.000616958
A33: 31 | B33: 0 | C33: -7.999161644 | D33: -7.999161644 | E33: -1.00078307
A34: 32 | B34: -1 | C34: -7.999296196 | D34: -7.999296196 | E34: -1.000793969
A35: 33 | B35: 0 | C35: -7.999604167 | D35: -7.999604167 | E35: -1.00062389
A36: 34 | B36: 0 | C36: -8.000030019 | D36: -8.000030019 | E36: -1.000287844
A37: 35 | B37: 0 | C37: -8.000482351 | D37: -8.000482351 | E37: -0.9998439059
A38: 36 | B38: 0 | C38: -8.000852929 | D38: -8.000852929 | E38: -0.9993848389
A39: 37 | B39: 0 | C39: -8.001042486 | D39: -8.001042486 | E39: -0.9990196542
A40: 38 | B40: 0 | C40: -8.000987382 | D40: -8.000987382 | E40: -0.9988484049 | J40: ↑√RCフィルタなのでシンボル間干渉が生じている
A41: 39 | B41: 0 | C41: -8.000680265 | D41: -8.000680265 | E41: -0.9989357403
A42: 40 | B42: 1 | C42: -8.0001785 | D42: -8.0001785 | E42: -0.9992898214
A43: 41 | B43: 0 | C43: -7.999596546 | D43: -7.999596546 | E43: -0.9998527328
A44: 42 | B44: 0 | C44: -7.999083282 | D44: -7.999083282 | E44: -1.000506406
A45: 43 | B45: 0 | C45: -7.998787395 | D45: -7.998787395 | E45: -1.001094645
A46: 44 | B46: 0 | C46: -7.998818218 | D46: -7.998818218 | E46: -1.001457802
A47: 45 | B47: 0 | C47: -7.999211729 | D47: -7.999211729 | E47: -1.001472996
A48: 46 | B48: 0 | C48: -7.999911175 | D48: -7.999911175 | E48: -1.001090391
A49: 47 | B49: 0 | C49: -8.000769206 | D49: -8.000769206 | E49: -1.000355831
A50: 48 | B50: -1 | C50: -8.001573815 | D50: -8.001573815 | E50: -0.9994122996
A51: 49 | B51: 0 | C51: -8.002094636 | D51: -8.002094636 | E51: -0.998477024
A52: 50 | B52: 0 | C52: -8.002139423 | D52: -8.002139423 | E52: -0.9977967718
A53: 51 | B53: 0 | C53: -8.001608616 | D53: -8.001608616 | E53: -0.9975896522
A54: 52 | B54: 0 | C54: -8.000534132 | D54: -8.000534132 | E54: -0.9979861895
A55: 53 | B55: 0 | C55: -7.999090468 | D55: -7.999090468 | E55: -0.9989842368
A56: 54 | B56: 0 | C56: -7.997571826 | D56: -7.997571826 | E56: -1.000430713
A57: 55 | B57: 0 | C57: -7.996336597 | D57: -7.996336597 | E57: -1.002038153
A58: 56 | B58: -1 | C58: -7.995728861 | D58: -7.995728861 | E58: -1.003436493
A59: 57 | B59: 0 | C59: -7.995993424 | D59: -7.995993424 | E59: -1.004251903
A60: 58 | B60: 0 | C60: -7.997203354 | D60: -7.997203354 | E60: -1.004196874
A61: 59 | B61: 0 | C61: -7.999220054 | D61: -7.999220054 | E61: -1.003151084
A62: 60 | B62: 0 | C62: -8.00169953 | D62: -8.00169953 | E62: -1.001212328
A63: 61 | B63: 0 | C63: -8.004148568 | D63: -8.004148568 | E63: -0.9987015674
A64: 62 | B64: 0 | C64: -8.006022937 | D64: -8.006022937 | E64: -0.9961153418
A65: 63 | B65: 0 | C65: -8.006848703 | D65: -8.006848703 | E65: -0.994030663
A66: 64 | B66: 1 | C66: -8.006339954 | D66: -8.006339954 | E66: -0.992979522
A67: 65 | B67: 0 | C67: -8.004484232 | D67: =C67 -> -8.004484232 | E67: -0.9933193965
A68: 66 | B68: 0 | C68: -8.00157278 | D68: -8.00157278 | E68: -0.9951301075
A69: 67 | B69: 0 | C69: -7.998161703 | D69: -7.998161703 | E69: -0.9981645071
A70: 68 | B70: 0 | C70: -7.994966149 | D70: -7.994966149 | E70: -1.00187071
A71: 69 | B71: 0 | C71: -7.992706193 | D71: -7.992706193 | E71: -1.005488496
A72: 70 | B72: 0 | C72: -7.991936669 | D72: -7.991936669 | E72: -1.008205109
A73: 71 | B73: 0 | C73: -7.99290041 | D73: -7.99290041 | E73: -1.009339921
A74: 72 | B74: 1 | C74: -7.995442761 | D74: -7.995442761 | E74: -1.008517151 | J74: ↑√RC x √RC=RC となりシンボル間干渉は生じない
A75: 73 | B75: 0 | C75: -7.999014355 | D75: -7.999014355 | E75: -1.005784226
A76: 74 | B76: 0 | C76: -8.00277169 | D76: -8.00277169 | E76: -1.001641619
A77: 75 | B77: 0 | C77: -8.005760453 | D77: -8.005760453 | E77: -0.9969673918
A78: 76 | B78: 0 | C78: -8.007145574 | D78: -8.007145574 | E78: -0.992842918
A79: 77 | B79: 0 | C79: -8.006436915 | D79: -8.006436915 | E79: -0.9903106697
A80: 78 | B80: 0 | C80: -8.003654637 | D80: -8.003654637 | E80: -0.9901147318
A81: 79 | B81: 0 | C81: -7.999386451 | D81: -7.999386451 | E81: -0.9924847297
A82: 80 | B82: 1 | C82: -7.994709326 | D82: -7.994709326 | E82: -0.9970206134
A83: 81 | B83: 0 | C83: -7.990977481 | D83: -7.990977481 | E83: -1.002718464
A84: 82 | B84: 0 | C84: -7.989511899 | D84: -7.989511899 | E84: -1.008148627
A85: 83 | B85: 0 | C85: -7.991252564 | D85: -7.991252564 | E85: -1.011762418
A86: 84 | B86: 0 | C86: -7.996452145 | D86: -7.996452145 | E86: -1.012269904
A87: 85 | B87: 0 | C87: -8.004490639 | D87: -8.004490639 | E87: -1.009006829
A88: 86 | B88: 0 | C88: -8.013872695 | D88: -8.013872695 | E88: -1.002200487
A89: 87 | B89: 0 | C89: -8.0224353 | D89: -8.0224353 | E89: -0.9930561023
A90: 88 | B90: -1 | C90: -8.027749049 | D90: -8.027749049 | E90: -0.9836168754
A91: 89 | B91: 0 | C91: -8.02764992 | D91: -8.02764992 | E91: -0.9763974381
A92: 90 | B92: 0 | C92: -8.020799242 | D92: -8.020799242 | E92: -0.9738433628
A93: 91 | B93: 0 | C93: -8.007151072 | D93: -8.007151072 | E93: -0.9777172752
A94: 92 | B94: 0 | C94: -7.988208997 | D94: -7.988208997 | E94: -0.9885436396
A95: 93 | B95: 0 | C95: -7.966983554 | D95: -7.966983554 | E95: -1.005250205
A96: 94 | B96: 0 | C96: -7.947613654 | D96: -7.947613654 | E96: -1.025119834
A97: 95 | B97: 0 | C97: -7.934681565 | D97: -7.934681565 | E97: -1.04411345
A98: 96 | B98: 1 | C98: -7.932319255 | D98: -7.932319255 | E98: -1.057551111
A99: 97 | B99: 0 | C99: -7.943260207 | D99: -7.943260207 | E99: -1.061057062
A100: 98 | B100: 0 | C100: -7.96802396 | D100: -7.96802396 | E100: -1.051602751
A101: 99 | B101: 0 | C101: -8.004416949 | D101: -8.004416949 | E101: -1.028435659
A102: 100 | B102: 0 | C102: -8.04749568 | D102: -8.04749568 | E102: -0.993674581
A103: 101 | B103: 0 | C103: -8.090067315 | D103: -8.090067315 | E103: -0.9523901127
A104: 102 | B104: 0 | C104: -8.123708976 | D104: -8.123708976 | E104: -0.9120702932
A105: 103 | B105: 0 | C105: -8.140186297 | D105: -8.140186297 | E105: -0.8814842839
A106: 104 | B106: 1 | C106: -8.133062049 | D106: -8.133062049 | E106: -0.8690824736
A107: 105 | B107: 0 | C107: -8.099224318 | D107: -8.099224318 | E107: -0.8811856815
A108: 106 | B108: 0 | C108: -8.040045543 | D108: -8.040045543 | E108: -0.9202950529
A109: 107 | B109: 0 | C109: -7.961911221 | D109: -7.961911221 | E109: -0.9838780958
A110: 108 | B110: 0 | C110: -7.875934977 | D110: -7.875934977 | E110: -1.063944158
A111: 109 | B111: 0 | C111: -7.796792384 | D111: -7.796792384 | E111: -1.147615262
A112: 110 | B112: 0 | C112: -7.740743001 | D112: -7.740743001 | E112: -1.21873901
A113: 111 | B113: 0 | C113: -7.72304808 | D113: -7.72304808 | E113: -1.260403778
A114: 112 | B114: 1 | C114: -7.755108147 | D114: -7.755108147 | E114: -1.258034572
A115: 113 | B115: 0 | C115: -7.841720723 | D115: -7.841720723 | E115: -1.202604598
A116: 114 | B116: 0 | C116: -7.978881303 | D116: -7.978881303 | E116: -1.09342245
A117: 115 | B117: 0 | C117: -8.152509958 | D117: -8.152509958 | E117: -0.9399673425
A118: 116 | B118: 0 | C118: -8.338390604 | D118: -8.338390604 | E118: -0.7623502602
A119: 117 | B119: 0 | C119: -8.503468142 | D119: -8.503468142 | E119: -0.590165981
A120: 118 | B120: 0 | C120: -8.608478398 | D120: -8.608478398 | E120: -0.4597433756
A121: 119 | B121: 0 | C121: -8.611709419 | D121: -8.611709419 | E121: -0.4100612185
A122: 120 | B122: 1 | C122: -8.473532809 | D122: -8.473532809 | E122: -0.4778308842
A123: 121 | B123: 0 | C123: -8.161221206 | D123: -8.161221206 | E123: -0.6924147045
A124: 122 | B124: 0 | C124: -7.653499955 | D124: -7.653499955 | E124: -1.071317857
A125: 123 | B125: 0 | C125: -6.944272842 | D125: -6.944272842 | E125: -1.616946257
A126: 124 | B126: 0 | C126: -6.045021742 | D126: -6.045021742 | E126: -2.315165617
A127: 125 | B127: 0 | C127: -4.985500501 | D127: -4.985500501 | E127: -3.13594921
A128: 126 | B128: 0 | C128: -3.812512857 | D128: -3.812512857 | E128: -4.036101225
A129: 127 | B129: 0 | C129: -2.586766841 | D129: -2.586766841 | E129: -4.963736107
A130: 128 | B130: -1 | C130: -1.378013388 | D130: -1.378013388 | E130: -5.863930947
A131: 129 | B131: 0 | C131: -0.258882377 | D131: =C131 -> -0.258882377 | E131: -6.684790496
A132: 130 | B132: 0 | C132: 0.7019986228 | D132: 0.7019986228 | E132: -7.383101621
A133: 131 | B133: 0 | C133: 1.446895496 | D133: 1.446895496 | E133: -7.928816353
A134: 132 | B134: 0 | C134: 1.935111965 | D134: 1.935111965 | E134: -8.307779838
A135: 133 | B135: 0 | C135: 2.147662464 | D135: 2.147662464 | E135: -8.522382627
A136: 134 | B136: 0 | C136: 2.089865472 | D136: 2.089865472 | E136: -8.590123251
A137: 135 | B137: 0 | C137: 1.791445954 | D137: 1.791445954 | E137: -8.540367842
A138: 136 | B138: 1 | C138: 1.303996543 | D138: 1.303996543 | E138: -8.409841574
A139: 137 | B139: 0 | C139: 0.6959472949 | D139: 0.6959472949 | E139: -8.237544405
A140: 138 | B140: 0 | C140: 0.0454989162 | D140: 0.0454989162 | E140: -8.059829488
A141: 139 | B141: 0 | C141: -0.5677492774 | D141: -0.5677492774 | E141: -7.906313867
A142: 140 | B142: 0 | C142: -1.071542174 | D142: -1.071542174 | E142: -7.797123898
A143: 141 | B143: 0 | C143: -1.409047947 | D143: -1.409047947 | E143: -7.741743666
A144: 142 | B144: 0 | C144: -1.545265168 | D144: -1.545265168 | E144: -7.739474633
A145: 143 | B145: 0 | C145: -1.470910135 | D145: -1.470910135 | E145: -7.781271898
A146: 144 | B146: -1 | C146: -1.203220223 | D146: -1.203220223 | E146: -7.852534814
A147: 145 | B147: 0 | C147: -0.7834859466 | D147: -0.7834859466 | E147: -7.936323787
A148: 146 | B148: 0 | C148: -0.2715471719 | D148: -0.2715471719 | E148: -8.016462073
A149: 147 | B149: 0 | C149: 0.26209534 | D149: 0.26209534 | E149: -8.0800564
A150: 148 | B150: 0 | C150: 0.7455591835 | D150: 0.7455591835 | E150: -8.119113516
A151: 149 | B151: 0 | C151: 1.115037827 | D151: 1.115037827 | E151: -8.13111201
A152: 150 | B152: 0 | C152: 1.323168025 | D152: 1.323168025 | E152: -8.118575727
A153: 151 | B153: 0 | C153: 1.345162331 | D153: 1.345162331 | E153: -8.087854987
A154: 152 | B154: -1 | C154: 1.181854138 | D154: 1.181854138 | E154: -8.047429845
A155: 153 | B155: 0 | C155: 0.8592262879 | D155: 0.8592262879 | E155: -8.006092253
A156: 154 | B156: 0 | C156: 0.4244909832 | D156: 0.4244909832 | E156: -7.971340323
A157: 155 | B157: 0 | C157: -0.06071894516 | D157: -0.06071894516 | E157: -7.948238852
A158: 156 | B158: 0 | C158: -0.5290690451 | D158: -0.5290690451 | E158: -7.938885443
A159: 157 | B159: 0 | C159: -0.9168984143 | D159: -0.9168984143 | E159: -7.94249532
A160: 158 | B160: 0 | C160: -1.172908258 | D160: -1.172908258 | E160: -7.956004107
A161: 159 | B161: 0 | C161: -1.264934502 | D161: -1.264934502 | E161: -7.975005829
A162: 160 | B162: 1 | C162: -1.183874007 | D162: -1.183874007 | E162: -7.994804745
A163: 161 | B163: 0 | C163: -0.9442714939 | D163: -0.9442714939 | E163: -8.011366683
A164: 162 | B164: 0 | C164: -0.5815820868 | D164: -0.5815820868 | E164: -8.022002052
A165: 163 | B165: 0 | C165: -0.1466171066 | D165: -0.1466171066 | E165: -8.025685384
A166: 164 | B166: 0 | C166: 0.3019142693 | D166: 0.3019142693 | E166: -8.022998528
A167: 165 | B167: 0 | C167: 0.7056038647 | D167: 0.7056038647 | E167: -8.015759596
A168: 166 | B168: 0 | C168: 1.014059854 | D168: 1.014059854 | E168: -8.006453796
A169: 167 | B169: 0 | C169: 1.191048682 | D169: 1.191048682 | E169: -7.997607169
A170: 168 | B170: 1 | C170: 1.218274003 | D170: 1.218274003 | E170: -7.991238353
A171: 169 | B171: 0 | C171: 1.096413753 | D171: 1.096413753 | E171: -7.988491305
A172: 170 | B172: 0 | C172: 0.843483382 | D172: 0.843483382 | E172: -7.989502701
A173: 171 | B173: 0 | C173: 0.4910038885 | D173: 0.4910038885 | E173: -7.993503184
A174: 172 | B174: 0 | C174: 0.07875469646 | D174: 0.07875469646 | E174: -7.999103311
A175: 173 | B175: 0 | C175: -0.3509586636 | D175: -0.3509586636 | E175: -8.004682037
A176: 174 | B176: 0 | C176: -0.7586102036 | D176: -0.7586102036 | E176: -8.008783081
A177: 175 | B177: 0 | C177: -1.111592396 | D177: -1.111592396 | E177: -8.010432944
A178: 176 | B178: 1 | C178: -1.386731793 | D178: -1.386731793 | E178: -8.009319892
A179: 177 | B179: 0 | C179: -1.571059895 | D179: -1.571059895 | E179: -8.005808878
A180: 178 | B180: 0 | C180: -1.661039553 | D180: -1.661039553 | E180: -8.000804824
A181: 179 | B181: 0 | C181: -1.660691608 | D181: -1.660691608 | E181: -7.995507926
A182: 180 | B182: 0 | C182: -1.579198276 | D182: -1.579198276 | E182: -7.991123759
A183: 181 | B183: 0 | C183: -1.428559726 | D183: -1.428559726 | E183: -7.988595057
A184: 182 | B184: 0 | C184: -1.221760055 | D184: -1.221760055 | E184: -7.988411624
A185: 183 | B185: 0 | C185: -0.9716942387 | D185: -0.9716942387 | E185: -7.9905333
A186: 184 | B186: -1 | C186: -0.6908698831 | D186: -0.6908698831 | E186: -7.994433809
A187: 185 | B187: 0 | C187: -0.3916821412 | D187: -0.3916821412 | E187: -7.999246711
A188: 186 | B188: 0 | C188: -0.0869141813 | D188: -0.0869141813 | E188: -8.003974213
A189: 187 | B189: 0 | C189: 0.2099259066 | D189: 0.2099259066 | E189: -8.007709002
A190: 188 | B190: 0 | C190: 0.4847568242 | D190: 0.4847568242 | E190: -8.009820106
A191: 189 | B191: 0 | C191: 0.7237346216 | D191: 0.7237346216 | E191: -8.010064936
A192: 190 | B192: 0 | C192: 0.9146853138 | D192: 0.9146853138 | E192: -8.008608203
A193: 191 | B193: 0 | C193: 1.048914603 | D193: 1.048914603 | E193: -8.005949733
A194: 192 | B194: 1 | C194: 1.122991722 | D194: 1.122991722 | E194: -8.002782918
A195: 193 | B195: 0 | C195: 1.140037271 | D195: =C195 -> 1.140037271 | E195: -7.999819402
A196: 194 | B196: 0 | C196: 1.110088515 | D196: 1.110088515 | E196: -7.997621202
A197: 195 | B197: 0 | C197: 1.049270733 | D197: 1.049270733 | E197: -7.996477999
A198: 196 | B198: 0 | C198: 0.9777356651 | D198: 0.9777356651 | E198: -7.996355989
A199: 197 | B199: 0 | C199: 0.9165937651 | D199: 0.9165937651 | E199: -7.996928123
A200: 198 | B200: 0 | C200: 0.8843092369 | D200: 0.8843092369 | E200: -7.997677362
... 826 more rows
